Cogmind - Beta 14 @@@ ROGUE MODE // 2024.10.26 @ 22:35:48 Player: Cherman0 Result: Heading to fleet! Performance ------------- Evolutions (9) 4500 Regions Visited (39) 7800 Robots Destroyed (501) 2505 Value Destroyed (22532) 22532 Prototype IDs (292) 5840 Alien Tech Used (5) 1000 Bonus (42247) 42247 TOTAL SCORE: 86424 Bonus ------- High Alert Combat Kills 1591 Follower Combat Kills 2637 Entered Garrisons 400 Network Hubs Disabled 600 Met Data Miner 300 Met Imprinter 300 Acquired ECA 300 Met Warlord at Base 500 MAIN.C Attacked Warlord 500 Built Enhanced Grunts 300 A7 Reached Mainframe 300 Met R17 at Cetus 500 Used Core Reset Matrix 3000 Met R17 at Research 2000 Met Warlord at Research 2000 Invited to Help at Command 2000 Scanned by Researcher 500 Destroyed MAIN.C Guards 500 Met MAIN.C 5000 Destroyed MAIN.C Shell 5000 Destroyed MAIN.C 10000 Met Warlord at Command 2000 Win 3000 Friendly Fire -981 Cogmind --------- Core Integrity 1184/1600 Matter 300/300 Energy 820/840 System Corruption 0% Temperature Cool (17) Movement Treading (166) Location To Fleet Rendezvous Parts ------- > --- POWER (3) -------- Zero-point Reactor Vortex Chain Reactor > --- PROPULSION (6) --- Improved Heavy Siege Treads Enhanced Armored Heavy Treads High-density Centrium Heavy Treads > --- UTILITY (13) ----- Huge Storage Unit Experimental Transmission Jammer Advanced Cloaking Device > --- WEAPON (4) ------- Compact HERF Cannon Enhanced Nova Cannon Heavy Hardcell Cannon > --- INVENTORY (25) --- (None) Peak State ------------ > --- POWER ------------ Zero-point Reactor Vortex Chain Reactor > --- PROPULSION ------- High-density Centrium Heavy Treads High-density Centrium Heavy Treads High-density Centrium Heavy Treads > --- UTILITY ---------- Experimental Cooling System Huge Storage Unit Long-range Sensor Array Experimental Sensor Array Advanced Signal Interpreter Experimental Terrain Scan Processor Experimental Core Analyzer Quantum Capacitor Advanced Transmission Jammer Light Regenerative Plating System Mapper Ghost Barrier > --- WEAPON ----------- Compact HERF Cannon Cooled Nova Cannon Compact Mass Driver Point Singularity Launcher > --- INVENTORY -------- Zero-point Reactor High-density Centrium Heavy Treads Experimental Cooling System Experimental Cooling System Improved Energy Well Improved Matter Compressor Advanced Terrain Scanner Seismic Detector Advanced Kinecellerator Quantum Capacitor Experimental Weapon Cycler Heavy Regenerative Plating Graphene Brace Focal Shield Force Field Advanced Remote Shield Improved Remote Force Field Antimissile System Long-range Tractor Beam Vortex Cannon Heavy Gauss Cannon Linear Accelerator [Rating: 241] Favorites ----------- Power Heavy Antimatter Reactor Engine Improved Deuterium Engine Power Core Light Neutrino Core Reactor Heavy Antimatter Reactor Propulsion Armored Treads Treads Armored Treads Leg Aluminum Leg Hover Unit Improved Antigrav System Flight Unit Advanced Surge Thruster Utility Seismic Detector Device Seismic Detector Storage Huge Storage Unit Processor Experimental Targeting Computer Hackware System Mapper Protection Light Regenerative Plating Artifact Core Physics Calibrator Weapon Neutron Cannon Energy Gun Enhanced Force Rifle Energy Cannon Neutron Cannon Ballistic Gun Improved Assault Rifle Ballistic Cannon Heavy Hardcell Cannon Launcher Gamma Bomb Array Special Weapon Mining Laser Impact Weapon Heavy Flail Special Melee Weapon Advanced Datajack Build | -11 -10 -10 -9 -9 -9 -8 -8 -8 -8 -8 -7 -7 -7 -7 -6 -6 -6 -6 -6 -6 -6 -5 -5 -5 -5 -5 -5 -4 -4 -4 -4 -3 -3 -3 -2 -2 -2 -1 -1 ------- Run | Yrd Mat Min Mat Min Exi Min Mat Gar Mat Sto Fac Low Low Zio Pro Fac Gar Fac Low Low Dat Pro Fac Ext Cet Arc Hub Fac Upp Upp War Pro Res Tes Res Qua Sec Acc Com Slots Evolved 18 | . . . 2 . . . 2 . . . 2 . . . . 2 . . . . . . 2 . . . . 2 . . . . 2 . 2 . . 2 . Power 2 | . . . . . . . . . . . 1 . . . . . . . . . . . . . . . . 1 . . . . . . . . . . . Propulsion 4 | . . . 1 . . . 1 . . . . . . . . 1 . . . . . . 1 . . . . . . . . . . . . . . . . Utility 10 | . . . 1 . . . 1 . . . 1 . . . . 1 . . . . . . 1 . . . . 1 . . . . 2 . 2 . . . . Weapon 2 | . . . . . . . . . . . . . . . . . . . . . . . . . . . . . . . . . . . . . . 2 . Parts Attached 863 | 4 12 8 34 8 1 9 42 9 40 37 49 10 3 19 14 14 26 41 4 3 2 6 22 14 11 8 16 21 2 3 14 5 16 42 18 39 85 47 105 Power 38 | . . 1 2 . . . 3 . 1 . 4 . . 1 . . 1 1 . . . . . . 2 . . 1 . . 1 . . 1 . . 5 2 12 Engine 9 | . . 1 2 . . . 3 . 1 . 2 . . . . . . . . . . . . . . . . . . . . . . . . . . . . Core 3 | . . . . . . . . . . . 1 . . 1 . . . 1 . . . . . . . . . . . . . . . . . . . . . Reactor 26 | . . . . . . . . . . . 1 . . . . . 1 . . . . . . . 2 . . 1 . . 1 . . 1 . . 5 2 12 Propulsion 120 | 2 1 2 8 . . . 14 . 19 13 11 . 1 1 . 2 2 3 . . . . 6 . 2 . . 1 . . . . 1 1 2 3 2 . 23 Treads 112 | 2 1 2 8 . . . 14 . 19 13 11 . 1 1 . 2 2 3 . . . . 6 . 2 . . 1 . . . . 1 1 2 3 2 . 15 Leg 4 | . . . . . . . . . . . . . . . . . . . . . . . . . . . . . . . . . . . . . . . 4 Wheel . | . . . . . . . . . . . . . . . . . . . . . . . . . . . . . . . . . . . . . . . . Hover 3 | . . . . . . . . . . . . . . . . . . . . . . . . . . . . . . . . . . . . . . . 3 Flight 1 | . . . . . . . . . . . . . . . . . . . . . . . . . . . . . . . . . . . . . . . 1 Utility 475 | 1 3 . 4 4 1 3 4 . 11 5 15 8 . 9 12 12 19 35 4 3 . 4 11 9 5 5 14 17 2 2 11 5 15 23 13 30 72 39 45 Device 427 | 1 1 . 2 4 . 2 1 . 5 1 9 8 . 8 12 11 19 34 4 3 . 4 10 9 4 4 13 17 2 2 7 5 13 21 13 30 68 39 41 Storage 9 | . 2 . . . 1 . . . . . 3 . . . . . . . . . . . . . . . . . . . . . . . . . 1 . 2 Processor 7 | . . . . . . . . . . . 1 . . . . . . . . . . . 1 . . . . . . . 2 . . 1 . . 2 . . Hackware 8 | . . . . . . . . . . 1 . . . . . 1 . 1 . . . . . . . 1 1 . . . . . 2 1 . . . . . Protection 23 | . . . 2 . . 1 3 . 6 3 2 . . 1 . . . . . . . . . . 1 . . . . . 2 . . . . . . . 2 Artifact 1 | . . . . . . . . . . . . . . . . . . . . . . . . . . . . . . . . . . . . . 1 . . Weapon 230 | 1 8 5 20 4 . 6 21 9 9 19 19 2 2 8 2 . 4 2 . . 2 2 5 5 2 3 2 2 . 1 2 . . 17 3 6 6 6 25 Energy Gun 80 | 1 3 4 4 3 . 3 9 3 6 14 10 1 1 4 . . . . . . . . 2 3 2 . . . . . . . . 3 . 1 . . 3 Energy Cannon 69 | . 1 . 8 . . 2 5 . . . 5 1 . 2 1 . 2 2 . . 2 1 2 2 . 2 1 1 . 1 1 . . 10 2 5 3 2 5 Ballistic Gun 2 | . . . 1 . . . . . . . . . . . . . . . . . . . . . . . . . . . . . . 1 . . . . . Ballistic Cannon 23 | . . . . . . . 2 1 2 3 . . . . . . . . . . . . . . . . . . . . . . . 1 . . 1 3 10 Launcher 38 | . 1 1 5 1 . 1 3 3 . . 1 . 1 1 1 . 2 . . . . 1 1 . . . 1 1 . . 1 . . 1 1 . 2 1 7 Special Weapon 2 | . 2 . . . . . . . . . . . . . . . . . . . . . . . . . . . . . . . . . . . . . . Impact Weapon 14 | . 1 . 2 . . . 2 2 1 2 3 . . . . . . . . . . . . . . . . . . . . . . 1 . . . . . Slashing Weapon . | . . . . . . . . . . . . . . . . . . . . . . . . . . . . . . . . . . . . . . . . Piercing Weapon . | . . . . . . . . . . . . . . . . . . . . . . . . . . . . . . . . . . . . . . . . Special Melee Weapon 2 | . . . . . . . . . . . . . . 1 . . . . . . . . . . . 1 . . . . . . . . . . . . . Unidentified Prototypes 60 | . 1 . 1 1 . . 2 . . 2 8 . . 2 . . . 1 1 . . . . 2 3 . . 1 . . 6 . 2 10 1 6 6 1 3 Corrupted Parts 1 | . . . . . . . . . . . . . . . . . . . . . . . . . . . . . . . . . . . . 1 . . . System Corruption 3 | . . . . . . . . . . . . . . . . . . . . . . . . . . . . . . . . . . . . 3 . . . Parts Lost 45 | . 1 3 1 . . 2 3 . 3 . 5 . . . . . . 5 . . . . 3 . . . . . . . . . . . . 1 3 . 15 Power 8 | . . 1 1 . . . 1 . 1 . . . . . . . . . . . . . . . . . . . . . . . . . . . 1 . 3 Propulsion 10 | . . 1 . . . . . . . . 3 . . . . . . . . . . . 2 . . . . . . . . . . . . 1 . . 3 Utility 19 | . 1 . . . . 2 1 . . . 1 . . . . . . 3 . . . . 1 . . . . . . . . . . . . . 2 . 8 Weapon 8 | . . 1 . . . . 1 . 2 . 1 . . . . . . 2 . . . . . . . . . . . . . . . . . . . . 1 Highest Loss Streak 7 | . 1 2 1 . . 2 1 . 3 . 2 . . . . . . 2 . . . . 3 . . . . . . . . . . . . 1 3 . 7 To Critical Strikes . | . . . . . . . . . . . . . . . . . . . . . . . . . . . . . . . . . . . . . . . . Average Slot Usage (%) 87 | . 99 99 99 100 100 99 99 100 99 99 99 100 99 98 100 100 95 93 92 93 81 93 93 94 88 83 83 84 80 80 78 75 76 76 79 78 78 76 54 Engine 3 | . 14 14 11 11 11 11 9 9 9 9 7 . . . . . . . . . . . . . . . . . . . . . . . . . . . . Core 1 | . . . . . . . . . . . 3 7 7 7 7 6 2 2 6 6 6 6 5 5 2 . . . . . . . . . . . . . . Reactor 5 | . . . . . . . . . . . 3 7 7 7 7 6 10 10 6 6 6 6 5 5 8 11 11 15 15 15 13 10 9 9 8 8 8 7 8 Treads 23 | . 27 27 33 33 33 33 36 36 36 36 29 30 30 30 30 33 28 26 25 25 25 25 26 27 23 16 16 14 15 15 15 15 12 13 12 11 12 11 8 Device 17 | . 14 14 21 21 22 21 18 18 17 10 13 15 15 15 15 14 13 15 13 18 18 18 19 22 20 18 11 17 20 20 19 15 18 17 25 24 22 18 19 Storage 6 | . 14 14 11 11 11 11 9 9 9 9 7 7 7 7 7 6 6 6 6 6 6 6 5 5 5 5 5 5 5 5 5 5 4 4 4 4 4 3 2 Processor 4 | . . . . . . . . . . . 3 7 7 7 7 6 6 6 6 6 6 6 10 11 11 11 11 6 5 5 5 10 9 9 8 8 9 11 . Hackware 2 | . . . . . . . . . . 7 4 . . . . 4 6 4 6 6 6 6 2 . . 2 10 10 5 5 5 5 8 9 8 8 8 7 . Protection 4 | . . . . . . . 9 9 9 8 6 7 7 6 7 6 6 6 6 6 6 6 5 5 5 5 5 5 5 5 4 5 4 4 4 4 4 3 . Energy Gun 7 | . 26 27 5 21 22 21 13 16 17 17 12 14 14 12 . . . . . . . . 1 . 11 8 . . . . . . . . . . . . 1 Energy Cannon 5 | . . . 16 . . . 3 . . . 1 . . . 14 13 12 13 12 12 . 11 9 10 . 1 11 9 10 10 9 10 9 8 8 7 7 7 2 Peak Build Rating 241 | 7 11 10 19 27 20 21 29 29 34 36 74 76 76 88 80 87 104 109 102 106 102 108 121 120 142 142 139 155 157 155 170 167 188 190 212 218 229 241 241 Average Rating 100 | 6 8 9 18 19 20 19 26 28 30 32 52 74 75 74 76 83 92 99 99 102 89 102 113 117 121 138 135 147 153 154 156 166 182 185 201 208 217 227 155 On Entrance 99 | 6 7 9 10 17 20 20 20 29 28 29 33 70 75 76 74 77 85 97 100 102 103 102 102 113 116 136 139 137 153 154 155 167 167 188 190 203 218 226 239 Naked Turns . | . . . . . . . . . . . . . . . . . . . . . . . . . . . . . . . . . . . . . . . . Heaviest Build 214 | 13 50 50 59 58 56 60 81 79 84 73 130 122 120 134 134 134 150 151 132 132 132 132 133 139 143 148 148 172 173 173 172 166 175 186 171 171 184 190 214 Greatest Support 270 | 40 40 40 63 63 63 63 80 80 80 80 84 80 80 80 80 100 150 170 165 165 165 165 185 172 235 235 235 235 235 235 235 235 235 235 230 270 270 270 270 Greatest Overweight (x) 15 | . 1 1 . . . . 1 . 1 . 1 1 1 1 1 1 1 1 . . . . . . . . . . . . . . . . . 1 . . 15 Average Overweight (x) . | . . 1 . . . . . . . . . 1 1 1 1 1 . . . . . . . . . . . . . . . . . . . . . . . Largest Inventory Capacity 25 | 8 20 20 20 20 20 20 20 20 20 20 25 25 25 25 25 25 25 25 25 25 25 25 25 25 25 25 25 25 25 25 25 25 25 25 25 25 25 25 25 Average Capacity 23 | 8 18 20 20 20 20 20 20 20 20 20 22 25 25 25 25 25 25 25 25 25 25 25 25 25 25 25 25 25 25 25 25 25 25 25 25 25 25 25 23 Most Carried 25 | 7 19 19 20 20 20 20 20 20 20 20 25 25 25 25 25 25 25 25 25 25 25 23 25 25 25 25 24 25 25 25 25 25 25 25 25 25 25 25 25 Average Carried 20 | 6 14 18 19 19 20 18 19 20 19 19 21 24 24 24 24 24 24 24 23 24 24 22 23 24 24 24 24 24 24 25 24 25 24 24 24 24 24 24 11 Final Capacity 25 | 8 20 20 20 20 20 20 20 20 20 20 25 25 25 25 25 25 25 25 25 25 25 25 25 25 25 25 25 25 25 25 25 25 25 25 25 25 25 25 25 Final Carried 25 | 5 19 19 20 20 20 18 20 20 20 20 25 25 25 25 25 25 25 23 23 25 23 23 25 25 25 24 24 25 25 25 25 25 25 25 25 25 25 25 . Class Distribution -------------------- 41% | Mutant 24% | Scavenger-Mutant 7% | Hacker-Skirmisher 6% | Hacker-Mutant 6% | Scavenger-Gunner 6% | Commander-Mutant 5% | Alien-Gunner Dominant Class ---------------- Mutant | -10/Materials Mutant | -10/Mines Mutant | -9/Materials Mutant | -9/Mines Mutant | -9/Exiles Mutant | -8/Mines Scavenger-Mutant | -8/Materials Scavenger-Mutant | -8/Garrison Scavenger-Mutant | -8/Materials Mutant | -8/Storage Scavenger-Mutant | -7/Factory Scavenger-Mutant | -7/Lower Caves Mutant | -7/Lower Caves Mutant | -7/Zion Mutant | -6/Proximity Caves Scavenger-Mutant | -6/Factory Mutant | -6/Garrison Mutant | -6/Factory Mutant | -6/Lower Caves Mutant | -6/Lower Caves Mutant | -6/Data Miner Mutant | -5/Proximity Caves Mutant | -5/Factory Commander-Mutant | -5/Extension Commander-Mutant | -5/Cetus Commander-Mutant | -5/Archives Commander-Mutant | -5/Hub_04(d) Scavenger-Mutant | -4/Factory Scavenger-Mutant | -4/Upper Caves Scavenger-Mutant | -4/Upper Caves Scavenger-Mutant | -4/Warlord Scavenger-Mutant | -3/Proximity Caves Hacker-Mutant | -3/Research Hacker-Mutant | -3/Testing Hacker-Skirmisher | -2/Research Hacker-Skirmisher | -2/Quarantine Hacker-Mutant | -2/Section 7 Hacker-Skirmisher | -1/Access Scavenger-Gunner | -1/Command Resources | -11 -10 -10 -9 -9 -9 -8 -8 -8 -8 -8 -7 -7 -7 -7 -6 -6 -6 -6 -6 -6 -6 -5 -5 -5 -5 -5 -5 -4 -4 -4 -4 -3 -3 -3 -2 -2 -2 -1 -1 ----------- Run | Yrd Mat Min Mat Min Exi Min Mat Gar Mat Sto Fac Low Low Zio Pro Fac Gar Fac Low Low Dat Pro Fac Ext Cet Arc Hub Fac Upp Upp War Pro Res Tes Res Qua Sec Acc Com Matter Collected 12556 | 230 100 113 385 136 5 110 488 137 446 444 851 105 66 90 220 358 539 537 300 110 . 161 126 229 150 80 153 204 141 36 155 80 168 469 426 447 1015 315 2431 Remotely 600 | . . . . . . . . . . . . . . . . . . . . . . . . . . . . . . . . . . . . . 10 . 590 Salvage Created 23140 | 90 409 291 1400 182 . 168 1153 304 1860 1698 1784 75 . . 89 358 661 724 . . . 245 190 712 21 312 322 586 . 96 . 271 49 783 258 1885 2908 825 2431 Parts 1270 | 6 36 22 97 10 . 10 71 24 99 108 133 7 . . 3 19 25 26 . . . 12 24 30 1 21 15 28 . 10 . 11 4 48 17 83 164 36 70 Haulers Intercepted 28 | . 2 . 5 . . . 3 . 6 6 3 . . . . . . . . . . . . . . . . . . . . . . . . . 3 . . Recyclers Shooed 11 | . 1 . 1 . . . 1 . 1 . 1 . . . . 1 . 1 . . . . . 3 . . . . . . . . . . . 1 . . . Parts Field Recycled . | . . . . . . . . . . . . . . . . . . . . . . . . . . . . . . . . . . . . . . . . Retrieved Matter . | . . . . . . . . . . . . . . . . . . . . . . . . . . . . . . . . . . . . . . . . Parts Self-Destructed 48 | . . . . . . . . . . . . 13 . 8 3 . . . . . . 8 . . . . . . . 10 . 6 . . . . . . . Prevented 8 | . . . . . . . . . . . . . . . . . . . 3 . . . . . . . . . . . . 5 . . . . . . . Kills | -11 -10 -10 -9 -9 -9 -8 -8 -8 -8 -8 -7 -7 -7 -7 -6 -6 -6 -6 -6 -6 -6 -5 -5 -5 -5 -5 -5 -4 -4 -4 -4 -3 -3 -3 -2 -2 -2 -1 -1 ------- Run | Yrd Mat Min Mat Min Exi Min Mat Gar Mat Sto Fac Low Low Zio Pro Fac Gar Fac Low Low Dat Pro Fac Ext Cet Arc Hub Fac Upp Upp War Pro Res Tes Res Qua Sec Acc Com Combat Hostiles Destroyed 368 | . 10 9 28 5 . 4 23 13 27 24 30 1 . . 6 5 18 14 . . . 11 6 12 . . 6 11 . 2 . 6 1 8 3 17 28 10 30 Guns 115 | . 10 8 1 3 . 2 16 7 26 21 19 1 . . . . . . . . . . 1 . . . . . . . . . . . . . . . . Cannons 142 | . . . 13 . . 1 4 . . 2 6 . . . 2 5 10 14 . . . 3 . 10 . . 5 5 . 2 . 4 1 6 1 5 19 6 18 AOE 67 | . . 1 13 2 . 1 1 6 . . 5 . . . 4 . 8 . . . . 8 5 2 . . 1 4 . . . . . . . . . . 6 Classes Destroyed 24 | 2 5 . 5 . . 1 . 1 1 . 3 . . . . . . 1 . . . 1 . . . . . . . . . . . 1 1 2 . . . Worker 19 | . 1 . 1 2 . 2 1 . . 3 5 . . . . . . . . . . . . . . . 1 1 . . . . . 1 . . . 1 . Builder 14 | . . . 1 . . . 1 . . 1 2 . . . . 1 . 1 . . . . 1 1 . . 1 . . . . . . 4 . . . . . Tunneler 7 | 1 . 1 1 1 . 1 1 . . . 1 . . . . . . . . . . . . . . . . . . . . . . . . . . . . Hauler 28 | . 2 . 5 . . . 3 . 6 6 3 . . . . . . . . . . . . . . . . . . . . . . . . . 3 . . Recycler 11 | 1 . . 2 . . . . . 1 3 1 . . . . 1 . 1 . . . . . . . . . . . . . . . . . 1 . . . Mechanic 5 | . . . 1 . . . 1 . . 2 . . . . . . . . . . . . . 1 . . . . . . . . . . . . . . . Operator 18 | . . . 1 . . . . . 2 2 1 . . . . . . 1 . . . . 1 . . 8 . . . . . . . . . 1 1 . . Drone 4 | . . . . . . . . . . . . . . . . . . . . . . 2 . . . . . . . . . 2 . . . . . . . Watcher 30 | . 3 . 5 . . . 1 . 5 2 3 . . . . 1 . . . . . . . . 1 . . 1 . . . . . 2 . 2 3 . 1 Swarmer 68 | . 6 3 14 . . . 7 7 4 7 . . . . 6 . . . . . . 4 5 1 . . . 3 . . . . . . . 1 . . . Grunt 109 | . 4 6 4 5 . 3 7 3 11 6 12 . . . . . 17 3 . . . 5 . 4 . . 4 5 . . . . . . . 3 3 2 2 Brawler 5 | . . . . . . . . 1 . . 2 . . . . . . . . . . . . . . . . . . . . . . . . 1 . . 1 Duelist 9 | . . . 1 . . . 1 1 1 . 1 . . . . . . 1 . . . . . . . . . . . . . . . . . 2 . 1 . Protector 4 | . . . . . . . . . . . 2 . . . . . . . . . . . . . . . . . . . . . . . . . . . 2 Researcher 1 | . . . . . . . . . . . . . . . . . . . . . . . . . . . . . . . . . . 1 . . . . . Sentry 67 | . . . 9 . . . 7 . 9 11 . 1 . . . 1 1 6 . . . . . 6 . . 1 1 . . . . . 2 . 3 5 1 3 Specialist 6 | . . . . . . . . . . . 2 . . . . . . . . . . . . . . . . . . . . . . . . . 2 . 2 Hunter 21 | . . . . . . 1 1 1 1 . 2 . . . . . . . . . . . . . . . . . . . . 2 . . . 2 . 2 9 Programmer 53 | . . . . . . . . . . . 7 . . . . 4 . 3 . . . . . . . . 1 2 . 2 . 2 1 6 1 2 11 4 7 Heavy 5 | . . . . . . . . . 1 . 2 . . . . . . . . . . . 1 . . . . . . . . . . . . . 1 . . Q-Series 5 | . . . . . . . . . . . . . . . . . . . . . . . . . . . . . . . . . . . . 2 3 . . Behemoth 2 | . . . . . . . . . . . . . . . . . . 1 . . . . . . . . . . . . . . . . . . 1 . . S7 Guard 2 | . . . . . . . . . . . . . . . . . . . . . . . . . . . . . . . . . . . . . 2 . . M Guard 2 | . . . . . . . . . . . . . . . . . . . . . . . . . . . . . . . . . . . . . . . 2 Executioner 2 | . . . . . . . . . . . . . . . . . . . . . . . . . . . . . . . . . . . 2 . . . . Fortress 1 | . . . . . . . . . . . . . . . . . . . . . . . . . . . . . . . . . . . . 1 . . . Savage 1 | . . . . . . . . . . . . . . . . . . . . . . . . 1 . . . . . . . . . . . . . . . Best Kill Streak 18 | 1 5 2 9 3 . 3 4 6 5 6 15 1 . . 3 2 5 6 . . . 9 6 2 1 4 4 7 . 2 . 3 1 4 3 4 4 4 18 Combat Bots Only 18 | . 3 2 7 3 . 3 4 6 4 4 8 1 . . 3 1 5 3 . . . 9 5 2 . . 4 5 . 2 . 3 1 4 3 4 3 4 18 Max Kills in Single Turn 5 | 1 2 1 4 1 . 1 2 4 1 2 5 1 . . 2 2 2 1 . . . 3 4 2 1 1 1 2 . 1 . 1 1 1 1 1 2 1 2 Gunslinging 1 | . 1 . . . . . 1 . . 1 . . . . . . . . . . . . . . . . . . . . . . . . . . . . . Exploded 4 | . . 1 3 1 . 1 1 4 . . 4 . . . 2 . 2 . . . . 3 3 1 . . 1 2 . . . . . . . . . . 2 Melee . | . . . . . . . . . . . . . . . . . . . . . . . . . . . . . . . . . . . . . . . . Uniques/NPCs Destroyed 2 | . . . . . . . . . . . . . . . . . . . . . . . . . . . . . . . . . . . . . . . 2 MAIN.C Shell (-1/Command) MAIN.C (-1/Command) Combat | -11 -10 -10 -9 -9 -9 -8 -8 -8 -8 -8 -7 -7 -7 -7 -6 -6 -6 -6 -6 -6 -6 -5 -5 -5 -5 -5 -5 -4 -4 -4 -4 -3 -3 -3 -2 -2 -2 -1 -1 -------- Run | Yrd Mat Min Mat Min Exi Min Mat Gar Mat Sto Fac Low Low Zio Pro Fac Gar Fac Low Low Dat Pro Fac Ext Cet Arc Hub Fac Upp Upp War Pro Res Tes Res Qua Sec Acc Com Hostile Shots Fired 2130 | . 38 55 75 22 . 24 120 37 128 84 169 45 . . 11 23 132 301 . . . 18 25 40 3 8 52 50 . 6 . 36 8 54 9 68 143 50 296 Missed 510 | . 10 15 24 9 . 2 30 8 39 22 42 15 . . 3 6 40 50 . . . 2 4 4 . 3 11 18 . 2 . 8 . 6 6 17 31 11 72 Intercepted 1 | . . . . . . . . . . . . . . . . . . . . . . . . . . . . . . . . . . . . . . . 1 Damage Taken 27099 | . 287 506 671 194 . 391 1175 313 1335 803 2376 202 . . 136 194 944 2023 . . . 148 754 582 106 134 881 559 . 63 . 414 178 1112 58 1079 2604 708 6169 Core 2171 | . 41 129 67 62 . 45 94 61 191 36 270 3 . . . . 89 140 . . . 16 6 79 . . 28 16 . . . 38 23 85 40 116 80 36 380 Absorbed by Shields 4336 | . . . . . . . . . 63 . 241 11 . . 19 24 347 447 . . . 155 178 184 . . . . . . . 18 46 118 20 279 817 118 1251 Reduced by Siege Mode 2122 | . . . . . . . . . . . . . . . . . 88 275 . . . 25 41 59 . . 150 53 . . . 23 31 208 5 208 291 53 612 Ignored by Resistances 1251 | . . . . . . . 72 67 223 . . . . . . . . . . . . . . 137 . . . 94 . 15 . . . . 14 . 12 25 592 Regen/Repaired (Parts) 5807 | . 95 . 180 . . . 143 . 205 144 243 171 . 892 10 14 74 235 81 . . 26 540 61 29 . 84 524 . . 354 72 . 307 285 252 309 143 334 Core Remaining (%) 71 | 100 . 32 . . . 56 . . . 30 . . . . 61 . . . . . . 71 . . . . 88 . . . . 95 . 91 . . 83 . 74 Volleys Fired 1883 | 4 51 34 75 14 . 10 84 25 117 82 110 8 . 1 6 28 84 85 1 7 . 22 29 49 13 37 30 41 . 5 . 35 30 97 22 126 195 78 248 Largest 3 | 2 2 2 2 2 . 2 2 2 2 2 2 2 . 1 2 2 2 2 1 1 . 2 2 2 2 2 2 2 . 1 . 1 1 2 1 1 1 2 3 Hottest 240 | 80 100 80 136 112 . 136 136 122 122 122 180 162 . 81 180 180 180 180 90 90 . 180 180 180 240 162 180 180 . 90 . 90 90 171 81 150 94 144 193 Shots Fired 2678 | 8 100 66 139 25 . 18 160 39 228 154 178 12 2 1 9 37 112 137 3 9 . 30 41 86 25 74 47 60 1 5 . 35 30 101 22 126 195 79 284 Gun 1037 | 8 98 64 13 22 . 10 102 31 224 144 149 8 2 1 . . . . . . . . 22 . 25 74 . . . . . . . 11 . . . . 29 Cannon 1567 | . . . 119 . . 6 53 1 4 10 24 4 . . 6 37 104 137 3 9 . 26 17 86 . . 46 54 1 5 . 35 30 89 22 126 195 79 239 Launcher 72 | . . 2 7 3 . 2 5 7 . . 5 . . . 3 . 8 . . . . 4 2 . . . 1 6 . . . . . 1 . . . . 16 Special 2 | . 2 . . . . . . . . . . . . . . . . . . . . . . . . . . . . . . . . . . . . . . Kinetic 88 | . . . . . . . 3 1 4 10 . . . . . . . . . . . . . . . . . . . . . . . . . . . . 70 Thermal 2239 | 8 100 64 132 22 . 16 152 31 224 144 171 12 2 1 6 37 104 137 3 9 . 26 39 86 25 74 46 50 . 5 . 23 25 74 15 83 133 54 106 Explosive 67 | . . 2 7 3 . 2 5 7 . . 5 . . . 3 . 8 . . . . 4 2 . . . 1 6 . . . . . 1 . . . . 11 Electromagnetic 272 | . . . . . . . . . . . 2 . . . . . . . . . . . . . . . . 4 1 . . 12 5 26 7 43 62 25 85 Entropic 12 | . . . . . . . . . . . . . . . . . . . . . . . . . . . . . . . . . . . . . . . 12 Robot Hit Streak 38 | 1 20 10 15 4 . 4 12 8 12 15 17 4 . . 6 8 21 33 . . . 7 12 16 14 15 10 21 . 8 . 7 13 20 11 21 15 8 38 Robot Miss Streak 6 | 2 4 3 4 2 . 2 3 3 6 4 6 1 . . 1 2 1 4 1 . . 3 1 1 1 3 3 2 . . . 4 1 2 . 2 4 2 4 Penetration Max . | . . . . . . . . . . . . . . . . . . . . . . . . . . . . . . . . . . . . . . . . Secondary Targets 11 | . 1 1 . 1 . . 3 1 1 3 . . . . . . . . . . . . . . . . . . . . . . . . . . . . . Max Gunslinging Chain 1 | . 1 1 . 1 . . 1 1 1 1 . . . . . . . . . . . . . . . . . . . . . . . . . . . . . Capacitor 775 | . . . . . . . . . . . . . . . . . . . . . . . . . . . . 4 1 5 . 35 30 98 22 126 195 77 182 Shots Hit Robots 1698 | 3 72 45 91 15 . 10 101 17 140 90 118 5 . . 7 14 61 92 . . . 8 22 64 19 57 28 39 . 3 . 20 9 65 10 76 141 37 219 Core Hits 819 | 3 27 19 49 12 . 10 45 16 59 50 92 2 . . 8 7 41 30 . . . 17 12 31 9 22 14 16 . 2 . 7 3 22 5 29 58 11 91 Critical Kills 17 | . . . 1 . . . 1 . . . 5 1 . . . . . . . . . . . . . 2 . 1 . . . . . 1 . 2 3 . . Critical Parts Destroyed 17 | . . . . . . . . . . . 6 . . . . . . . . . . . . . 1 9 . . . . . . . 1 . . . . . Critical Strikes 93 | . . . 4 1 . . 10 1 14 7 19 1 . . . . . . . . . . . . 3 12 . 1 . . . . . 3 1 2 5 . 9 Burn 41 | . . . 3 1 . . 9 1 14 7 6 . . . . . . . . . . . . . . . . . . . . . . . . . . . . Meltdown 8 | . . . 1 . . . 1 . . . . . . . . . . . . . . . . . . . . 1 . . . . . . . 2 3 . . Destroy 31 | . . . . . . . . . . . 13 1 . . . . . . . . . . . . 3 12 . . . . . . . 2 . . . . . Blast 3 | . . . . . . . . . . . . . . . . . . . . . . . . . . . . . . . . . . . . . . . 3 Corrupt 5 | . . . . . . . . . . . . . . . . . . . . . . . . . . . . . . . . . . 1 1 . 2 . 1 Sunder 5 | . . . . . . . . . . . . . . . . . . . . . . . . . . . . . . . . . . . . . . . 5 Melee Attacks 24 | . 1 . 6 . . . 2 4 1 2 4 . . . . . . . . . . . . . . 4 . . . . . . . . . . . . . Impact 20 | . 1 . 6 . . . 2 4 1 2 4 . . . . . . . . . . . . . . . . . . . . . . . . . . . . Slashing . | . . . . . . . . . . . . . . . . . . . . . . . . . . . . . . . . . . . . . . . . Piercing . | . . . . . . . . . . . . . . . . . . . . . . . . . . . . . . . . . . . . . . . . Sneak Attacks 4 | . . . . . . . . . . . . . . . . . . . . . . . . . . 4 . . . . . . . . . . . . . Combat Hostiles . | . . . . . . . . . . . . . . . . . . . . . . . . . . . . . . . . . . . . . . . . Follow-up Attacks . | . . . . . . . . . . . . . . . . . . . . . . . . . . . . . . . . . . . . . . . . Damage Inflicted 62813 | 36 812 641 2505 498 . 430 2498 836 3048 2245 4744 123 . . 466 697 3428 3784 . . . 1169 980 3190 458 1302 1355 1922 . 141 . 880 429 2857 378 2911 5285 1813 10952 Guns 14121 | 36 799 487 197 222 . 100 1420 306 3010 1912 2616 123 . . . . . . . . . . 454 . 458 1302 . . . . . . . 216 . . . . 463 Cannons 38204 | . . . 1656 . . 81 675 . . 308 539 . . . 153 626 2054 3673 . . . 222 39 2591 . . 1101 1322 . 141 . 880 429 2547 378 2858 5285 1744 8902 Explosions 9804 | . . 149 601 237 . 188 357 530 . . 1562 . . . 313 51 1374 96 . . . 947 487 476 . . 186 600 . . . . . 69 . . . . 1581 Melee 28 | . . . 28 . . . . . . . . . . . . . . . . . . . . . . . . . . . . . . . . . . . . Ramming 656 | . 13 5 23 39 . 61 46 . 38 25 27 . . . . 20 . 15 . . . . . 123 . . 68 . . . . . . 25 . 53 . 69 6 Kinetic 2835 | . . . . . . . . . . 308 . . . . . . . . . . . . . . . . . . . . . . . . . . . . 2527 Thermal 42435 | 36 799 487 1853 222 . 181 2095 306 3010 1912 3117 123 . . 218 677 2212 3769 . . . 244 493 2977 458 1302 1101 1569 . 141 . 508 326 2007 160 1301 3622 1063 4146 Explosive 8561 | . . 149 601 237 . 188 357 530 . . 1562 . . . 248 . 1216 . . . . 925 487 . . . 186 225 . . . . . 69 . . . . 1581 Electromagnetic 7540 | . . . . . . . . . . . 38 . . . . . . . . . . . . 90 . . . 128 . . . 372 103 756 218 1557 1663 681 1934 Impact 28 | . . . 28 . . . . . . . . . . . . . . . . . . . . . . . . . . . . . . . . . . . . Slashing . | . . . . . . . . . . . . . . . . . . . . . . . . . . . . . . . . . . . . . . . . Piercing . | . . . . . . . . . . . . . . . . . . . . . . . . . . . . . . . . . . . . . . . . Entropic 758 | . . . . . . . . . . . . . . . . . . . . . . . . . . . . . . . . . . . . . . . 758 Highest Corruption 12 | . . . . . . . . . . . 2 2 2 2 . 2 2 7 7 7 7 7 . . . . 6 1 1 2 2 5 2 12 . 7 . . . Average Corruption 4 | . . . . . . . . . . . 1 2 2 2 . 2 2 4 7 7 7 7 . . . . 3 1 1 1 2 4 1 8 . 3 . . . Corruption Purged . | . . . . . . . . . . . . . . . . . . . . . . . . . . . . . . . . . . . . . . . . Corruption Blocked . | . . . . . . . . . . . . . . . . . . . . . . . . . . . . . . . . . . . . . . . . Effects 357 | . . . . . . . . . . . 18 14 30 3 . 9 15 37 37 44 5 25 . . . . 12 2 6 9 . 23 5 45 . 18 . . . Message Errors 89 | . . . . . . . . . . . 6 6 10 2 . 2 2 8 9 8 2 9 . . . . 3 . . 3 . 7 1 7 . 4 . . . Matter Fused 82 | . . . . . . . . . . . 4 1 6 . . 2 5 7 11 12 1 3 . . . . 1 . 2 3 . 3 1 14 . 6 . . . Heat Flow Errors 44 | . . . . . . . . . . . 1 2 1 . . 2 2 4 4 7 1 1 . . . . 3 1 2 1 . 5 1 5 . 1 . . . Energy Discharges 46 | . . . . . . . . . . . 2 3 4 . . 1 1 5 5 7 1 4 . . . . 1 1 . . . 4 1 5 . 1 . . . Parts Rejected 1 | . . . . . . . . . . . . . . . . . . . . . . . . . . . 1 . . . . . . . . . . . . Parts Fused 2 | . . . . . . . . . . . . . 1 . . . . . . . . . . . . . . . . . . 1 . . . . . . . Data Loss (minor) 41 | . . . . . . . . . . . 2 2 5 1 . 2 2 5 4 3 . 2 . . . . 1 . . 1 . 1 . 5 . 5 . . . Data Loss (major) 19 | . . . . . . . . . . . 1 . 1 . . . . 2 1 5 . 3 . . . . 1 . . . . . 1 3 . 1 . . . Misfires 20 | . . . . . . . . . . . 1 . 2 . . . . 3 2 2 . 3 . . . . 1 . 1 . . 1 . 4 . . . . . Alerts 6 | . . . . . . . . . . . . . . . . . 2 . 1 . . . . . . . . . 1 1 . . . 1 . . . . . Weapon Failures 7 | . . . . . . . . . . . 1 . . . . . 1 3 . . . . . . . . . . . . . 1 . 1 . . . . . Overload Shots 3 | . . . . . . . . . . . . . . . . . . . . . . . . . 1 . . . . . . . . . . 2 . . . Effects 1 | . . . . . . . . . . . . . . . . . . . . . . . . . . . . . . . . . . . . 1 . . . Short Circuit 1 | . . . . . . . . . . . . . . . . . . . . . . . . . . . . . . . . . . . . 1 . . . Overflow Damage 1688 | . . 2 21 . . 10 5 17 8 16 4 . . . 11 85 77 135 . . . 50 7 56 . . 62 149 . 16 . 5 21 255 5 115 153 97 306 Projectiles 1244 | . . . 15 . . . 5 . . 16 1 . . . 11 69 70 135 . . . 30 . 28 . . 62 19 . 16 . 5 21 206 5 115 153 97 165 Explosions 426 | . . 2 6 . . 10 . 17 . . 3 . . . . 16 7 . . . . 20 7 18 . . . 130 . . . . . 49 . . . . 141 Melee 18 | . . . . . . . . . 8 . . . . . . . . . . . . . . 10 . . . . . . . . . . . . . . . Knockbacks 18 | . . . 1 . . . . . . . 1 . . . . . . . . . . . . 2 . . . . . . . . . . . . . . 14 Impact 4 | . . . 1 . . . . . . . 1 . . . . . . . . . . . . 2 . . . . . . . . . . . . . . . Kinetic 13 | . . . . . . . . . . . . . . . . . . . . . . . . . . . . . . . . . . . . . . . 13 Secondary 1 | . . . . . . . . . . . . . . . . . . . . . . . . . . . . . . . . . . . . . . . 1 Self-Inflicted Damage 541 | . . 8 51 . . 41 . 35 . . . . . . 41 . 73 . . . . 23 . 50 . . 56 39 . . . . . . . . . . 124 Shots 20 | . . 1 4 . . 2 . 2 . . . . . . 1 . 4 . . . . 1 . 1 . . 1 1 . . . . . . . . . . 2 Rammed 48 | . 4 3 1 2 . 2 3 . 3 4 5 . . . . 1 . 1 . . . . . 7 . . 7 . . . . . . 1 . 2 . 1 1 Targets Rammed 59 | . 4 4 2 4 . 4 5 . 3 5 6 . . . . 1 . 1 . . . . . 8 . . 7 . . . . . . 1 . 2 . 1 1 Kicked . | . . . . . . . . . . . . . . . . . . . . . . . . . . . . . . . . . . . . . . . . Crushed 11 | . . 1 1 2 . 2 2 . . 1 1 . . . . . . . . . . . . 1 . . . . . . . . . . . . . . . Highest Temperature 469 | 54 180 198 42 9 . 229 108 20 156 297 469 252 242 56 144 337 235 444 204 220 76 200 297 252 102 . 284 209 225 228 204 302 305 320 81 159 284 356 190 Average Temperature 66 | 25 46 81 8 4 . 88 37 12 48 82 122 105 90 30 62 110 55 90 18 77 39 39 124 64 29 . 34 72 82 94 100 108 59 79 45 102 83 74 68 Received Heat Transfer 4680 | . 84 234 147 105 . 171 558 36 574 279 483 52 . . . 6 355 479 . . . 33 . 140 . 27 144 45 . . . . . 33 . 72 232 45 346 Effects 17 | . . . . . . . . . . . 5 . . . . 1 . 7 . . . . . . . . . . . . . . 2 2 . . . . . Shutdowns 1 | . . . . . . . . . . . 1 . . . . . . . . . . . . . . . . . . . . . . . . . . . . Energy Bleed 6 | . . . . . . . . . . . . . . . . 1 . 3 . . . . . . . . . . . . . . 2 . . . . . . Interference 8 | . . . . . . . . . . . 3 . . . . . . 3 . . . . . . . . . . . . . . . 2 . . . . . Matter Decay 1 | . . . . . . . . . . . . . . . . . . 1 . . . . . . . . . . . . . . . . . . . . . Damage (minor) 1 | . . . . . . . . . . . 1 . . . . . . . . . . . . . . . . . . . . . . . . . . . . Siege Activations 75 | . . . . . . . . . . . . . . . . . 3 8 . . . 1 1 7 2 1 3 4 . . . 2 1 2 1 8 20 4 7 Total Turns 1755 | . . . . . . . . . . . . . . . . . 139 167 . . . 18 34 119 13 2 65 51 . . . 23 11 65 19 90 309 42 588 Longest Duration 340 | . . . . . . . . . . . . . . . . . 49 47 . . . 18 34 42 10 2 31 21 . . . 15 11 39 19 19 40 16 340 Robots Corrupted 38 | . . . . . . . . . 1 . . . . . . . . . . . . . . . . . . 1 . . . 2 . 3 2 10 6 4 9 Combat Hostiles 36 | . . . . . . . . . . . . . . . . . . . . . . . . . . . . 1 . . . 2 . 2 2 10 6 4 9 Parts Fried 67 | . . . . . . . . . 2 . . . . . . . . . . . . . . . . . . . . . . 3 . 11 2 11 9 8 21 Impact Corruptions 2 | . . . . . . . . . 1 . . . . . . . . . . . . . . 1 . . . . . . . . . . . . . . . Robots Melted 11 | . . . 1 . . . 2 . 1 1 . . . . . . . . . . . . . . . . . 1 . . . . . . . 2 3 . . Combat Hostiles 11 | . . . 1 . . . 2 . 1 1 . . . . . . . . . . . . . . . . . 1 . . . . . . . 2 3 . . Parts Melted 97 | . 3 2 10 . . 1 14 . 13 7 9 . . . . . . . . . . . 3 . . 13 . 5 . . . . . . 2 2 8 5 . Heat Transferred 39847 | 75 1825 1075 3515 555 . 370 4403 629 6401 3885 4124 185 . . 50 50 150 100 . . . . 703 302 703 1960 750 1150 . . . . . 370 111 1250 3330 740 1086 Parts Sabotaged . | . . . . . . . . . . . . . . . . . . . . . . . . . . . . . . . . . . . . . . . . Parts Stolen . | . . . . . . . . . . . . . . . . . . . . . . . . . . . . . . . . . . . . . . . . Parts Stripped . | . . . . . . . . . . . . . . . . . . . . . . . . . . . . . . . . . . . . . . . . Power Chain Reactions 14 | . . . . . . . . . . . . . . . 1 1 3 1 . . . 1 . 4 . . . 1 . . . . . . . . . . 2 Alert | -11 -10 -10 -9 -9 -9 -8 -8 -8 -8 -8 -7 -7 -7 -7 -6 -6 -6 -6 -6 -6 -6 -5 -5 -5 -5 -5 -5 -4 -4 -4 -4 -3 -3 -3 -2 -2 -2 -1 -1 ------- Run | Yrd Mat Min Mat Min Exi Min Mat Gar Mat Sto Fac Low Low Zio Pro Fac Gar Fac Low Low Dat Pro Fac Ext Cet Arc Hub Fac Upp Upp War Pro Res Tes Res Qua Sec Acc Com Peak Influence 735 | 10 204 177 505 208 . 101 478 654 721 572 623 . . . . 99 707 532 . . . . 358 602 568 406 721 735 . . . . 569 460 186 223 542 534 357 Initial 450 | . 6 12 7 33 . . 3 206 318 291 238 . . . . . 69 371 . . . . 150 8 257 147 72 352 . . . . 450 219 99 . 60 324 245 Average 240 | 6 46 32 206 63 . 38 188 436 543 355 265 . . . . 39 448 299 . . . . 162 253 425 312 377 388 . . . . 443 198 68 104 271 415 267 Maximum Alert Level 3 | . 1 . 2 1 . . 2 2 3 2 2 . . . . . 3 2 . . . . 1 2 2 2 3 3 . . . . 2 2 . 1 2 2 3 Low Security (%) 39 | 100 98 100 37 86 . 100 50 . . 3 31 . . . . 100 16 33 . . . . 78 53 . 5 37 . . . . . . 57 100 92 34 . . Level 1 25 | . 1 . 62 13 . . 40 42 14 67 38 . . . . . 16 39 . . . . 21 10 64 72 18 78 . . . . 47 34 . 7 41 38 9 Level 2 17 | . . . . . . . 8 57 74 28 30 . . . . . 53 27 . . . . . 35 35 22 35 18 . . . . 52 7 . . 23 61 3 Level 3 16 | . . . . . . . . . 10 . . . . . . . 13 . . . . . . . . . 8 3 . . . . . . . . . . 86 Level 4 . | . . . . . . . . . . . . . . . . . . . . . . . . . . . . . . . . . . . . . . . . Level 5 . | . . . . . . . . . . . . . . . . . . . . . . . . . . . . . . . . . . . . . . . . High Security . | . . . . . . . . . . . . . . . . . . . . . . . . . . . . . . . . . . . . . . . . Max Security . | . . . . . . . . . . . . . . . . . . . . . . . . . . . . . . . . . . . . . . . . Squads Dispatched 69 | . 2 . 1 1 . . . . 5 4 6 . . . . 3 . 5 . . . . 3 2 . . 7 4 . . . . 4 4 . 6 8 3 1 Investigation 19 | . 2 . 1 1 . . . . 3 3 . . . . . . . 1 . . . . . . . . 3 1 . . . . 2 . . . 1 1 . Extermination 28 | . . . . . . . . . . . 3 . . . . 3 . 3 . . . . 1 . . . 1 1 . . . . . 3 . 5 6 1 1 Reinforcement 17 | . . . . . . . . . 2 . 3 . . . . . . 1 . . . . 2 2 . . 2 . . . . . 2 1 . 1 1 . . Assault 2 | . . . . . . . . . . . . . . . . . . . . . . . . . . . 1 . . . . . . . . . . 1 . Garrison 3 | . . . . . . . . . . 1 . . . . . . . . . . . . . . . . . 2 . . . . . . . . . . . Intercept . | . . . . . . . . . . . . . . . . . . . . . . . . . . . . . . . . . . . . . . . . Searches Triggered . | . . . . . . . . . . . . . . . . . . . . . . . . . . . . . . . . . . . . . . . . Data Miner Redirects 2 | . . . . . . . . . . . . . . . . . . . . . . . . . . . 1 . . . . . . . . . . 1 . Construction Impeded 1 | . . . . . . . . . . . . . . . . . . 1 . . . . . . . . . . . . . . . . . . . . . Haulers Reinforced . | . . . . . . . . . . . . . . . . . . . . . . . . . . . . . . . . . . . . . . . . Active Scanning Responses . | . . . . . . . . . . . . . . . . . . . . . . . . . . . . . . . . . . . . . . . . Cargo Convoy Interrupts 1 | . . . . . . . . . . . 1 . . . . . . . . . . . . . . . . . . . . . . . . . . . . Stealth | -11 -10 -10 -9 -9 -9 -8 -8 -8 -8 -8 -7 -7 -7 -7 -6 -6 -6 -6 -6 -6 -6 -5 -5 -5 -5 -5 -5 -4 -4 -4 -4 -3 -3 -3 -2 -2 -2 -1 -1 --------- Run | Yrd Mat Min Mat Min Exi Min Mat Gar Mat Sto Fac Low Low Zio Pro Fac Gar Fac Low Low Dat Pro Fac Ext Cet Arc Hub Fac Upp Upp War Pro Res Tes Res Qua Sec Acc Com Distress Signals 62 | . 2 . . . . . 2 . 4 2 2 . . . . . . 1 . . . . 1 2 2 . 5 1 . . . . 5 . 8 1 4 1 19 Communications Jammed 50 | . . . . . . . . . . . . . . . . . . . . . . . . . . . . . . . . . . 2 . . 7 . 41 Distress Signals 48 | . . . . . . . . . . . . . . . . . . . . . . . . . . . . . . . . . . 2 . . 5 . 41 Times Spotted 605 | . 20 12 38 6 . 4 39 12 39 40 53 1 . . 4 7 21 22 . . . 10 6 29 9 22 31 16 . 2 9 7 5 15 4 24 40 12 46 Peak Tracking Total 11 | . 4 3 7 3 . 3 7 6 5 4 11 1 . . 2 2 5 5 . . . 6 6 7 5 1 6 3 . 2 11 2 2 3 2 6 6 3 8 Tactical Retreats 20 | . . 4 1 . . . 2 1 . 2 . . . . . . 3 . . . . . . 1 . . . . . . 1 . . . . . 4 . 1 Traps | -11 -10 -10 -9 -9 -9 -8 -8 -8 -8 -8 -7 -7 -7 -7 -6 -6 -6 -6 -6 -6 -6 -5 -5 -5 -5 -5 -5 -4 -4 -4 -4 -3 -3 -3 -2 -2 -2 -1 -1 ------- Run | Yrd Mat Min Mat Min Exi Min Mat Gar Mat Sto Fac Low Low Zio Pro Fac Gar Fac Low Low Dat Pro Fac Ext Cet Arc Hub Fac Upp Upp War Pro Res Tes Res Qua Sec Acc Com Traps Triggered 16 | . . . . . . . . . 1 1 2 . . . . . . 1 . . . . . . . . 3 2 . . . . . 3 . 1 . . 2 Indirectly . | . . . . . . . . . . . . . . . . . . . . . . . . . . . . . . . . . . . . . . . . Trap Hack Attempts . | . . . . . . . . . . . . . . . . . . . . . . . . . . . . . . . . . . . . . . . . Triggered . | . . . . . . . . . . . . . . . . . . . . . . . . . . . . . . . . . . . . . . . . Disarmed . | . . . . . . . . . . . . . . . . . . . . . . . . . . . . . . . . . . . . . . . . Reprogrammed . | . . . . . . . . . . . . . . . . . . . . . . . . . . . . . . . . . . . . . . . . Reused . | . . . . . . . . . . . . . . . . . . . . . . . . . . . . . . . . . . . . . . . . Traps Extracted 3 | . . . . 3 . . . . . . . . . . . . . . . . . . . . . . . . . . . . . . . . . . . Installed . | . . . . . . . . . . . . . . . . . . . . . . . . . . . . . . . . . . . . . . . . Triggered 13 | . . . . . . . . . . . . 1 . . . . . . 1 . . . . . . . . . . . 10 . . . . . . . 1 Most Traps Carried 4 | . . . . 3 3 3 3 3 3 3 3 4 4 4 4 4 4 4 . . . . . . . . . . . . . . . . . . . . . Machines | -11 -10 -10 -9 -9 -9 -8 -8 -8 -8 -8 -7 -7 -7 -7 -6 -6 -6 -6 -6 -6 -6 -5 -5 -5 -5 -5 -5 -4 -4 -4 -4 -3 -3 -3 -2 -2 -2 -1 -1 ---------- Run | Yrd Mat Min Mat Min Exi Min Mat Gar Mat Sto Fac Low Low Zio Pro Fac Gar Fac Low Low Dat Pro Fac Ext Cet Arc Hub Fac Upp Upp War Pro Res Tes Res Qua Sec Acc Com Machines Disabled 55 | . . . 2 2 . . 4 2 2 . 1 . . . . 1 2 2 . . . 1 . 3 1 2 2 4 . . . . . 9 . 2 8 1 4 Max in Single Turn 2 | . . . 1 1 . . 1 1 1 . 1 . . . . 1 1 1 . . . 1 . 1 1 1 1 1 . . . . . 2 . 1 1 1 2 Garrison Access 6 | . . . . . . . . . . 1 . . . . . . . . . . . . . . . . 1 . . . . . 1 1 . 1 . 1 . Garrison Relay 1 | . . . . . . . . . . . . . . . . . 1 . . . . . . . . . . . . . . . . . . . . . . Phase Generator 1 | . . . . . . . . . . . . . . . . . . . . . . . . . . . . . . . . . . . . . . . 1 Network Hub 3 | . . . . . . . . . . . . . . . . . . . . . . . . . . . 3 . . . . . . . . . . . . Machines Repaired . | . . . . . . . . . . . . . . . . . . . . . . . . . . . . . . . . . . . . . . . . Machines Dismantled . | . . . . . . . . . . . . . . . . . . . . . . . . . . . . . . . . . . . . . . . . Machines Sabotaged 1 | . . . . . . . . . . . . . . . . . . . . . . . . . . . 1 . . . . . . . . . . . . Overloaded Fab Kills . | . . . . . . . . . . . . . . . . . . . . . . . . . . . . . . . . . . . . . . . . Hacking | -11 -10 -10 -9 -9 -9 -8 -8 -8 -8 -8 -7 -7 -7 -7 -6 -6 -6 -6 -6 -6 -6 -5 -5 -5 -5 -5 -5 -4 -4 -4 -4 -3 -3 -3 -2 -2 -2 -1 -1 --------- Run | Yrd Mat Min Mat Min Exi Min Mat Gar Mat Sto Fac Low Low Zio Pro Fac Gar Fac Low Low Dat Pro Fac Ext Cet Arc Hub Fac Upp Upp War Pro Res Tes Res Qua Sec Acc Com Machines Accessed 175 | . 11 . 14 1 1 . 13 1 14 17 6 . . . . 2 1 5 1 4 4 1 3 1 1 . 5 5 1 2 10 . 8 12 2 12 12 3 2 Terminals 107 | . 8 . 11 . . . 9 1 11 12 4 . . . . 1 1 4 . 1 . 1 . 1 1 . 4 2 1 . . . 4 7 1 9 11 . 2 Fabricators 6 | . . . . . . . . . . . . . . . . . . 1 . . . . 1 . . . . 1 . . . . 1 1 . . . 1 . Repair Stations 19 | . 1 . 2 . . . 2 . 2 2 2 . . . . . . . . . . . 1 . . . . 1 . . . . 1 2 1 1 . 1 . Recycling Units 5 | . 2 . 1 . . . . . . 2 . . . . . . . . . . . . . . . . . . . . . . . . . . . . . Scanalyzers 6 | . . . . . . . 1 . 1 . . . . . . . . . . . . . . . . . . 1 . . . . . 1 . 1 1 . . Garrison Access 10 | . . . . . . . 1 . . 1 . . . . . 1 . . . . . . 1 . . . 1 . . . . . 2 1 . 1 . 1 . Total Hacks 653 | . 37 . 52 1 1 . 38 2 37 39 21 . . . . 6 3 16 1 10 29 1 13 1 2 . 9 23 2 5 22 . 55 73 10 75 59 4 6 Successful 341 | . 18 . 33 1 1 . 24 1 17 24 8 . . . . 4 1 7 1 10 29 1 6 . . . 5 11 2 5 22 . 16 29 4 31 25 3 2 Failed 310 | . 18 . 19 . . . 14 1 20 14 13 . . . . 2 2 9 . . . . 7 1 2 . 4 12 . . . . 39 44 6 44 34 1 4 Catastrophic 49 | . 1 . . . . . 2 . 3 . 1 . . . . . . 2 . . . . . 1 2 . . 1 . . . . 12 7 1 6 10 . . Database Lockouts 2 | . 1 . . . . . . . . 1 . . . . . . . . . . . . . . . . . . . . . . . . . . . . . Manual 271 | . 21 . 38 . . . 19 1 26 22 3 . . . . 5 . 9 . . . . . 1 1 . 8 3 . . 1 . 15 28 . 30 39 1 . Terminals 439 | . 25 . 44 . . . 28 2 30 30 18 . . . . 3 3 13 . 1 . 1 . 1 2 . 8 5 2 . . . 39 57 6 57 58 . 6 Fabricators 20 | . . . . . . . . . . . . . . . . . . 3 . . . . 4 . . . . 7 . . . . 4 1 . . . 1 . Repair Stations 80 | . 4 . 7 . . . 4 . 5 6 3 . . . . . . . . . . . 7 . . . . 9 . . . . 4 11 4 14 . 2 . Recycling Units 11 | . 8 . 1 . . . . . . 2 . . . . . . . . . . . . . . . . . . . . . . . . . . . . . Scanalyzers 11 | . . . . . . . 2 . 2 . . . . . . . . . . . . . . . . . . 2 . . . . . 1 . 3 1 . . Garrison Access 24 | . . . . . . . 4 . . 1 . . . . . 3 . . . . . . 2 . . . 1 . . . . . 8 3 . 1 . 1 . Terminal Hacks 186 | . 6 . 13 1 1 . 9 1 3 11 7 . . . . 1 1 5 1 10 29 1 . . . . 2 1 2 5 22 . 11 13 2 13 13 . 2 Record 41 | . . . . . 1 . . . . . . . . . . . . . . 8 11 1 . . . . . . 2 4 12 . 1 . . . 1 . . Part Schematic 14 | . . . . . . . . . . . 1 . . . . . . . . . 10 . . . . . . . . . . . 2 1 . . . . . Robot Schematic 6 | . . . 1 . . . . . . . . . . . . . . . . . 5 . . . . . . . . . . . . . . . . . . Robot Analysis 7 | . 2 . 2 . . . . . . 2 . . . . . . . . . . . . . . . . . . . . . . . . . . 1 . . Prototype ID Bank 23 | . 2 . 3 . . . 2 . . . . . . . . . . . . . 3 . . . . . . . . . 8 . 2 . . 3 . . . Open Door 11 | . . . . 1 . . . . . 3 . . . . . . . . 1 2 . . . . . . . . . 1 2 . . . . . . . 1 Level Access Points 4 | . . . . . . . . . . . . . . . . . . . . . . . . . . . . . . . . . . 1 1 1 1 . . Branch Access Points 6 | . . . . . . . . . 1 . . . . . . 1 . 1 . . . . . . . . 1 1 . . . . 1 . . . . . . Emergency Access Points 1 | . . . . . . . . . . . . . . . . . 1 . . . . . . . . . . . . . . . . . . . . . . Machine Index 1 | . . . . . . . . . . . . . . . . . . . . . . . . . . . . . . . . . . 1 . . . . . Terminal Index 5 | . . . 1 . . . 1 . 1 1 . . . . . . . . . . . . . . . . . . . . . . . . . . 1 . . Repair Station Index 1 | . . . . . . . . . . . . . . . . . . . . . . . . . . . . . . . . . 1 . . . . . . Scanalyzer Index 1 | . . . . . . . . . . . . . . . . . . 1 . . . . . . . . . . . . . . . . . . . . . Garrison Index 1 | . . . . . . . . . . . . . . . . . . . . . . . . . . . . . . . . . . . 1 . . . . Alert Level 10 | . . . . . . . 2 . . 2 2 . . . . . . 1 . . . . . . . . . . . . . . . 1 . 1 1 . . Unreport Threat 12 | . . . 2 . . . 1 . . 2 2 . . . . . . 1 . . . . . . . . 1 . . . . . . 1 . . 2 . . Locate Traps 11 | . 2 . 2 . . . 2 . 1 . 1 . . . . . . . . . . . . . . . . . . . . . 1 . . 1 1 . . Dispatch Records 1 | . . . . . . . . . . . . . . . . . . . . . . . . . . . . . . . . . . . . 1 . . . Maintenance Status 1 | . . . . . . . . . . . . . . . . . . . . . . . . . . . . . . . . . 1 . . . . . . Patrol Status 2 | . . . . . . . . . . . . . . . . . . . . . . . . . . . . . . . . . . 1 . . 1 . . Recall Extermination 3 | . . . . . . . . . . . . . . . . . . . . . . . . . . . . . . . . . . 1 . 2 . . . Recall Reinforcements 1 | . . . . . . . . . . . . . . . . . . . . . . . . . . . . . . . . . . . . 1 . . . Hauler Manifests 5 | . . . . . . . 1 . . 1 . . . . . . . . . . . . . . . . . . . . . . . 1 . 1 1 . . Registered Prototypes 1 | . . . . . . . . . . . . . . . . . . . . . . . . . . . . . . . . . . 1 . . . . . Zone Layout 15 | . . . 2 . . . . . . . 1 . . . . . . 1 . . . . . . . . . . . . . . 2 4 . 2 3 . . Garrison Registry 1 | . . . . . . . . 1 . . . . . . . . . . . . . . . . . . . . . . . . . . . . . . . Disengage Seal 1 | . . . . . . . . . . . . . . . . . . . . . . . . . . . . . . . . . . . . . . . 1 Fabricator Hacks 10 | . . . . . . . . . . . . . . . . . . 1 . . . . 3 . . . . 3 . . . . 1 1 . . . 1 . Network Status 5 | . . . . . . . . . . . . . . . . . . 1 . . . . 1 . . . . 1 . . . . . 1 . . . 1 . Load Schematic 3 | . . . . . . . . . . . . . . . . . . . . . . . 1 . . . . 1 . . . . 1 . . . . . . Build 2 | . . . . . . . . . . . . . . . . . . . . . . . 1 . . . . 1 . . . . . . . . . . . Repair Station Hacks 36 | . 2 . 4 . . . 3 . 1 5 1 . . . . . . . . . . . 3 . . . . 3 . . . . 1 4 2 7 . . . Scan Component 22 | . 1 . 2 . . . 2 . 1 3 1 . . . . . . . . . . . 2 . . . . 2 . . . . 1 2 1 4 . . . Repair 14 | . 1 . 2 . . . 1 . . 2 . . . . . . . . . . . . 1 . . . . 1 . . . . . 2 1 3 . . . Recycling Unit Hacks 1 | . 1 . . . . . . . . . . . . . . . . . . . . . . . . . . . . . . . . . . . . . . Retrieve Components 1 | . 1 . . . . . . . . . . . . . . . . . . . . . . . . . . . . . . . . . . . . . . Scanalyzer 7 | . . . . . . . 2 . 2 . . . . . . . . . . . . . . . . . . 2 . . . . . . . 1 . . . Insert Component 4 | . . . . . . . 1 . 1 . . . . . . . . . . . . . . . . . . 1 . . . . . . . 1 . . . Analyze 3 | . . . . . . . 1 . 1 . . . . . . . . . . . . . . . . . . 1 . . . . . . . . . . . Garrison Access Hacks 8 | . . . . . . . 1 . . 1 . . . . . 1 . . . . . . . . . . 1 . . . . . 1 1 . 1 . 1 . Unlock Access 2 | . . . . . . . 1 . . . . . . . . 1 . . . . . . . . . . . . . . . . . . . . . . . Seal Access 6 | . . . . . . . . . . 1 . . . . . . . . . . . . . . . . 1 . . . . . 1 1 . 1 . 1 . Unauthorized Hacks 93 | . 9 . 16 . . . 9 . 11 7 . . . . . 2 . 1 . . . . . . . . 2 2 . . . . 2 10 . 9 12 1 . Terminals 79 | . 7 . 15 . . . 8 . 10 5 . . . . . 2 . . . . . . . . . . 2 . . . . . 2 9 . 8 11 . . Track 2 | . . . . . . . . . . . . . . . . . . . . . . . . . . . . . . . . . 1 1 . . . . . Assimilate 8 | . . . 2 . . . 2 . . 1 . . . . . . . . . . . . . . . . . . . . . . . . . 1 2 . . Botnet 7 | . 1 . 1 . . . . . . 1 . . . . . . . . . . . . . . . . . . . . . . . 2 . 1 1 . . Disrupt 2 | . . . . . . . . . . . . . . . . . . . . . . . . . . . . . . . . . 1 . . . 1 . . Operators 7 | . 1 . 1 . . . 1 . . 1 . . . . . 1 . . . . . . . . . . . . . . . . . 1 . 1 . . . Skim 51 | . 5 . 11 . . . 5 . 10 2 . . . . . 1 . . . . . . . . . . . . . . . . . 5 . 5 7 . . Sabotage 2 | . . . . . . . . . . . . . . . . . . . . . . . . . . . 2 . . . . . . . . . . . . Fabricators 3 | . . . . . . . . . . . . . . . . . . 1 . . . . . . . . . 2 . . . . . . . . . . . Prioritize 1 | . . . . . . . . . . . . . . . . . . . . . . . . . . . . 1 . . . . . . . . . . . Haulers 2 | . . . . . . . . . . . . . . . . . . 1 . . . . . . . . . 1 . . . . . . . . . . . Repair Stations 2 | . . . . . . . . . 1 . . . . . . . . . . . . . . . . . . . . . . . . . . . . 1 . Patch 2 | . . . . . . . . . 1 . . . . . . . . . . . . . . . . . . . . . . . . . . . . 1 . Recycling Units 5 | . 2 . 1 . . . . . . 2 . . . . . . . . . . . . . . . . . . . . . . . . . . . . . Tunnel 5 | . 2 . 1 . . . . . . 2 . . . . . . . . . . . . . . . . . . . . . . . . . . . . . Scanalyzers 3 | . . . . . . . . . . . . . . . . . . . . . . . . . . . . . . . . . . 1 . 1 1 . . Researchers 3 | . . . . . . . . . . . . . . . . . . . . . . . . . . . . . . . . . . 1 . 1 1 . . Garrison Access 1 | . . . . . . . 1 . . . . . . . . . . . . . . . . . . . . . . . . . . . . . . . . Watchers 1 | . . . . . . . 1 . . . . . . . . . . . . . . . . . . . . . . . . . . . . . . . . Data Cores Recovered 8 | . . . 1 . . . . . 1 2 . . . . . . . 1 . . . . 1 . . . . . . . . . . . . 1 1 . . Used 5 | . . . 1 . . . . . . 1 . . . . . . . 1 . . . . . . . . . . . . . . . . . 1 1 . . Hacking Detections 120 | . 10 . 12 . . . 12 1 12 11 6 . . . . 2 1 3 . . . 1 3 1 1 . 2 5 . . . . 7 9 2 5 12 1 1 Full Trace Events 6 | . . . 1 . . . . . 1 . . . . . . . . 1 . . . . . . . . . 1 . . . . 1 . . . 1 . . Feedback Events 1 | . . . . . . . . . . . . . . . . . . 1 . . . . . . . . . . . . . . . . . . . . . Hackware Fried 1 | . . . . . . . . . . . . . . . . . . 1 . . . . . . . . . . . . . . . . . . . . . Feedback Blocked . | . . . . . . . . . . . . . . . . . . . . . . . . . . . . . . . . . . . . . . . . Robot Schematics Acquired 11 | . . . 1 . . . . . . . . . . 4 . . . . . . 5 . . . . . . . . . . . . 1 . . . . . Robots Built 2 | . . . . . . . . . . . . . . . . . . . . . . . 2 . . . . . . . . . . . . . . . . Authchips . | . . . . . . . . . . . . . . . . . . . . . . . . . . . . . . . . . . . . . . . . Time 40 | . . . . . . . . . . . . . . . . . . . . . . . 40 . . . . . . . . . . . . . . . . Total Robot Build Rating 2 | . . . . . . . . . . . . . . . . . . . . . . . 2 . . . . . . . . . . . . . . . . Part Schematics Acquired 30 | . . . . . . . 1 . . . 1 . . 13 . . . . . . 10 . . . . . . 1 . . . . 2 2 . . . . . Parts Built 2 | . . . . . . . . . . . . . . . . . . . . . . . . . . . . 2 . . . . . . . . . . . Authchips . | . . . . . . . . . . . . . . . . . . . . . . . . . . . . . . . . . . . . . . . . Time 58 | . . . . . . . . . . . . . . . . . . . . . . . . . . . . 58 . . . . . . . . . . . Total Part Build Rating 14 | . . . . . . . . . . . . . . . . . . . . . . . . . . . . 14 . . . . . . . . . . . Parts Repaired 14 | . 1 . 2 . . . 1 . . 2 . . . . . . . . . . . . 1 . . . . 1 . . . . . 2 1 3 . . . Time 552 | . 26 . 102 . . . 32 . . 146 . . . . . . . . . . . . 34 . . . . 22 . . . . . 73 36 81 . . . Parts Recycled . | . . . . . . . . . . . . . . . . . . . . . . . . . . . . . . . . . . . . . . . . Recycled Matter . | . . . . . . . . . . . . . . . . . . . . . . . . . . . . . . . . . . . . . . . . Retrieved Matter . | . . . . . . . . . . . . . . . . . . . . . . . . . . . . . . . . . . . . . . . . Retrieved Components 8 | . 8 . . . . . . . . . . . . . . . . . . . . . . . . . . . . . . . . . . . . . . Parts Scanalyzed 3 | . . . . . . . 1 . 1 . . . . . . . . . . . . . . . . . . 1 . . . . . . . . . . . Part Schematics Acquired 2 | . . . . . . . 1 . . . . . . . . . . . . . . . . . . . . 1 . . . . . . . . . . . Parts Damaged 1 | . . . . . . . . . . . . . . . . . . . . . . . . . . . . 1 . . . . . . . . . . . Bothacking | -11 -10 -10 -9 -9 -9 -8 -8 -8 -8 -8 -7 -7 -7 -7 -6 -6 -6 -6 -6 -6 -6 -5 -5 -5 -5 -5 -5 -4 -4 -4 -4 -3 -3 -3 -2 -2 -2 -1 -1 ------------ Run | Yrd Mat Min Mat Min Exi Min Mat Gar Mat Sto Fac Low Low Zio Pro Fac Gar Fac Low Low Dat Pro Fac Ext Cet Arc Hub Fac Upp Upp War Pro Res Tes Res Qua Sec Acc Com Used RIF Installer . | . . . . . . . . . . . . . . . . . . . . . . . . . . . . . . . . . . . . . . . . Robots Hacked 3 | . . . . . . . . . . . . . . . . . . . . . . . . . . 3 . . . . . . . . . . . . . Non-combat 1 | . . . . . . . . . . . . . . . . . . . . . . . . . . 1 . . . . . . . . . . . . . Combat 2 | . . . . . . . . . . . . . . . . . . . . . . . . . . 2 . . . . . . . . . . . . . Robot Hacks Applied 4 | . . . . . . . . . . . . . . . . . . . . . . . . . . 4 . . . . . . . . . . . . . parse_system 3 | . . . . . . . . . . . . . . . . . . . . . . . . . . 3 . . . . . . . . . . . . . check_alert 1 | . . . . . . . . . . . . . . . . . . . . . . . . . . 1 . . . . . . . . . . . . . Relay Couplers Released 6 | . . . . . . . . . . . . . . . . . 3 . . . . . . . . . . . . . . . . . . . . 3 . Machine Destruction 3 | . . . . . . . . . . . . . . . . . 3 . . . . . . . . . . . . . . . . . . . . . . Programmers 3 | . . . . . . . . . . . . . . . . . . . . . . . . . . . . . . . . . . . . . . 3 . Fabnet Peak Effective % . | . . . . . . . . . . . . . . . . . . . . . . . . . . . . . . . . . . . . . . . . Robots Rewired 21 | . . . . . . . . . . . . . . . . . . 1 . . . . . 20 . . . . . . . . . . . . . . . Allies Hacked . | . . . . . . . . . . . . . . . . . . . . . . . . . . . . . . . . . . . . . . . . Hacks Repelled . | . . . . . . . . . . . . . . . . . . . . . . . . . . . . . . . . . . . . . . . . Allies | -11 -10 -10 -9 -9 -9 -8 -8 -8 -8 -8 -7 -7 -7 -7 -6 -6 -6 -6 -6 -6 -6 -5 -5 -5 -5 -5 -5 -4 -4 -4 -4 -3 -3 -3 -2 -2 -2 -1 -1 -------- Run | Yrd Mat Min Mat Min Exi Min Mat Gar Mat Sto Fac Low Low Zio Pro Fac Gar Fac Low Low Dat Pro Fac Ext Cet Arc Hub Fac Upp Upp War Pro Res Tes Res Qua Sec Acc Com Total Allies 48 | . . . 1 . . . 1 . . 13 . . . . . . . 1 . . . . 2 24 5 . . . . . . . . . . . 1 . . Largest Group 13 | . . . 1 1 1 1 1 1 1 13 13 . . . . . . 1 . . . . 2 13 9 8 7 . . . . . . . . . 1 . . Highest-Rated Group 722 | . . . 10 10 10 9 10 10 10 266 266 . . . . . . 29 . . . . 16 512 722 700 551 . . . . . . . . . 45 . . Highest-Rated Ally 159 | . . . 10 10 10 9 10 10 10 31 31 . . . . . . 29 . . . . 8 159 150 142 96 . . . . . . . . . 45 . . Total Orders 31 | . . . 2 2 . . . 4 . . . . . . . . 1 7 . . . . 1 1 . 2 9 . . . . . . . . . 2 . . STAY 12 | . . . 1 1 . . . 2 . . . . . . . . . . . . . . . . . 1 6 . . . . . . . . . 1 . . FOLLOW 9 | . . . 1 1 . . . 2 . . . . . . . . . . . . . . . . . 1 3 . . . . . . . . . 1 . . RETURN 10 | . . . . . . . . . . . . . . . . . 1 7 . . . . 1 1 . . . . . . . . . . . . . . . Ally Attacks 342 | . . . . . . . . . . 8 70 . . . . . . 1 . . . . . 119 33 31 80 . . . . . . . . . . . . Total Damage 8194 | . . . . . . . . . . 118 756 . . . . . . 25 . . . . . 3295 865 989 2146 . . . . . . . . . . . . Kills 73 | . . . . . . . . . . 2 8 . . . . . . . . . . . . 26 10 4 23 . . . . . . . . . . . . Allies Corrupted 1 | . . . . . . . . . . . 1 . . . . . . . . . . . . . . . . . . . . . . . . . . . . Allies Melted . | . . . . . . . . . . . . . . . . . . . . . . . . . . . . . . . . . . . . . . . . Intel | -11 -10 -10 -9 -9 -9 -8 -8 -8 -8 -8 -7 -7 -7 -7 -6 -6 -6 -6 -6 -6 -6 -5 -5 -5 -5 -5 -5 -4 -4 -4 -4 -3 -3 -3 -2 -2 -2 -1 -1 ------- Run | Yrd Mat Min Mat Min Exi Min Mat Gar Mat Sto Fac Low Low Zio Pro Fac Gar Fac Low Low Dat Pro Fac Ext Cet Arc Hub Fac Upp Upp War Pro Res Tes Res Qua Sec Acc Com Robot Analysis Total 7 | . 2 . 2 . . . . . . 2 . . . . . . . . . . . . . . . . . . . . . . . . . . 1 . . Derelict Logs Recovered 14 | . . 1 . 1 . . . . . . . . 2 1 . . . . 3 2 . 2 . . . . . . 1 1 . . . . . . . . . Drone Launches 10 | . . . . . . . . . . . . . . . . . 1 7 . . . . 1 1 . . . . . . . . . . . . . . . Drone Recoveries 10 | . . . . . . . . . . . . . . . . . 1 7 . . . . 1 1 . . . . . . . . . . . . . . . Exploration | -11 -10 -10 -9 -9 -9 -8 -8 -8 -8 -8 -7 -7 -7 -7 -6 -6 -6 -6 -6 -6 -6 -5 -5 -5 -5 -5 -5 -4 -4 -4 -4 -3 -3 -3 -2 -2 -2 -1 -1 ------------- Run | Yrd Mat Min Mat Min Exi Min Mat Gar Mat Sto Fac Low Low Zio Pro Fac Gar Fac Low Low Dat Pro Fac Ext Cet Arc Hub Fac Upp Upp War Pro Res Tes Res Qua Sec Acc Com Turns Passed 64822 | 57 2193 2157 3312 1170 547 990 2869 664 2713 2429 1751 1414 1982 3872 981 1143 1124 1563 1200 1542 175 992 907 2383 556 521 1294 871 516 909 1395 816 763 1330 1027 2692 2382 854 8766 Spaces Moved 29916 | 22 894 636 1376 692 339 589 1232 352 1267 1121 674 540 791 1531 365 412 400 696 717 916 103 547 334 1076 286 218 674 409 308 539 819 400 400 639 586 1350 918 401 4347 Core 223 | . . . . . . . . . . . . . . . . . . . . . . . . . . . . . . . . . . . . . . . 223 Treads 29693 | 22 894 636 1376 692 339 589 1232 352 1267 1121 674 540 791 1531 365 412 400 696 717 916 103 547 334 1076 286 218 674 409 308 539 819 400 400 639 586 1350 918 401 4124 Legs . | . . . . . . . . . . . . . . . . . . . . . . . . . . . . . . . . . . . . . . . . Wheels . | . . . . . . . . . . . . . . . . . . . . . . . . . . . . . . . . . . . . . . . . Hover . | . . . . . . . . . . . . . . . . . . . . . . . . . . . . . . . . . . . . . . . . Flight . | . . . . . . . . . . . . . . . . . . . . . . . . . . . . . . . . . . . . . . . . Fastest Speed 50 | 160 160 240 160 160 160 160 160 160 160 162 162 250 250 250 250 250 166 161 165 165 165 165 165 170 166 166 166 166 166 166 166 166 166 166 161 160 160 160 50 Average Speed 178 | 160 210 240 160 160 160 160 160 160 161 162 191 250 250 250 250 250 186 167 165 165 165 165 167 170 169 166 166 166 166 166 166 166 166 169 164 160 160 160 167 Slowest Speed 800 | 160 240 240 160 160 160 160 240 160 242 162 250 250 250 250 250 250 250 248 165 165 165 165 170 170 170 166 166 166 166 166 166 166 166 170 170 247 160 160 800 Overloaded Moves . | . . . . . . . . . . . . . . . . . . . . . . . . . . . . . . . . . . . . . . . . Propulsion Burnouts . | . . . . . . . . . . . . . . . . . . . . . . . . . . . . . . . . . . . . . . . . Robots Hopped . | . . . . . . . . . . . . . . . . . . . . . . . . . . . . . . . . . . . . . . . . Cave-ins Triggered . | . . . . . . . . . . . . . . . . . . . . . . . . . . . . . . . . . . . . . . . . Exploration Rate (%) 63 | 3 96 103 91 95 68 92 79 44 96 94 24 72 96 85 51 13 70 23 84 93 73 75 11 87 77 74 55 13 61 68 93 50 19 84 13 94 35 13 81 Regions Visited 39 Branch Regions 25 Pre-discovered Areas 19 | . 2 . 7 1 1 . 2 . . 2 . 1 . . . . . . . . 1 . . . . . . . . . . . . . . . 2 . . Known Exits Taken 28 | . 1 1 1 . 1 1 1 . 1 1 1 . . . . 1 . 1 . . . 1 1 1 1 1 1 1 1 1 1 1 1 1 1 1 1 1 . Unknown Exits Taken 9 | 1 . . . 1 . . . . . . . 1 1 1 1 . . . 1 1 1 . . . . . . . . . . . . . . . . . . Scrap Searched 35 | . . 1 . 2 . 2 . . . . . 4 6 3 . . . . 5 3 . . . . . . . . 5 3 . 1 . . . . . . . Spaces Dug 444 | . 3 . 7 . . 9 5 11 6 4 6 4 . . 15 14 36 26 1 7 . 12 15 14 . . 26 61 . 2 . 6 17 37 12 37 19 25 7 Terrain Destroyed 1033 | . 3 15 46 15 . 15 46 16 6 9 35 4 . . 44 27 81 48 2 9 . 75 43 49 . . 30 107 . 2 . 11 18 37 12 45 32 31 120 Melee 15 | . 1 . 2 . . . 2 3 1 2 4 . . . . . . . . . . . . . . . . . . . . . . . . . . . . Projectile 389 | . 2 . . . . . 6 . 5 7 6 4 . . 2 17 41 38 2 9 . 18 16 15 . . 15 11 . 2 . 11 18 16 12 45 32 31 8 AOE 629 | . . 15 44 15 . 15 38 13 . . 25 . . . 42 10 40 10 . . . 57 27 34 . . 15 96 . . . . . 21 . . . . 112 Terrain Rammed . | . . . . . . . . . . . . . . . . . . . . . . . . . . . . . . . . . . . . . . . . Walls Destroyed . | . . . . . . . . . . . . . . . . . . . . . . . . . . . . . . . . . . . . . . . . Machines Disabled . | . . . . . . . . . . . . . . . . . . . . . . . . . . . . . . . . . . . . . . . . Actions | -11 -10 -10 -9 -9 -9 -8 -8 -8 -8 -8 -7 -7 -7 -7 -6 -6 -6 -6 -6 -6 -6 -5 -5 -5 -5 -5 -5 -4 -4 -4 -4 -3 -3 -3 -2 -2 -2 -1 -1 --------- Run | Yrd Mat Min Mat Min Exi Min Mat Gar Mat Sto Fac Low Low Zio Pro Fac Gar Fac Low Low Dat Pro Fac Ext Cet Arc Hub Fac Upp Upp War Pro Res Tes Res Qua Sec Acc Com Total 39312 | 35 1099 1193 2345 727 344 613 1961 403 1708 1578 929 590 800 1577 417 478 634 942 732 938 110 606 642 1557 345 305 787 548 312 552 858 547 498 875 644 1858 1810 601 5814 Wait 5551 | 3 110 509 797 . 4 2 554 14 238 287 43 29 1 6 31 12 116 108 8 10 . 30 242 172 18 34 61 55 . 4 1 108 38 52 5 318 553 52 926 Move 29875 | 21 893 635 1375 691 338 588 1231 351 1266 1120 673 539 790 1530 364 411 398 695 716 915 102 546 333 1075 285 217 673 408 307 538 818 399 399 638 585 1349 917 400 4346 Hop . | . . . . . . . . . . . . . . . . . . . . . . . . . . . . . . . . . . . . . . . . Pick Up 250 | 1 20 3 26 5 . . 17 . 14 14 23 2 1 6 1 7 3 5 1 1 2 1 11 3 4 1 . 9 2 1 7 . 6 14 6 4 11 4 14 Fast Attach 188 | 1 1 . 2 . . . 4 . 2 3 3 . 2 7 . . 1 2 1 1 . . 2 1 5 1 1 6 . . 8 . 4 17 5 14 26 10 58 Attach 123 | . 2 3 3 . . 2 5 . 7 11 9 . . 1 . 2 . 5 2 1 2 . 6 1 2 1 . 5 . . 2 . 3 3 3 3 5 9 25 Detach 84 | . 1 . . . . . . . . . 1 . 1 2 . . . . 1 1 . . 1 . 2 1 . 2 . . 4 . 2 4 . 5 5 8 43 Swap 558 | 3 9 5 29 8 1 7 34 9 31 23 37 10 1 11 14 12 25 34 2 1 . 6 14 12 4 6 15 10 2 3 4 5 9 22 10 24 56 28 22 Drop 421 | 2 7 . 30 5 1 . 25 . 29 30 18 2 4 13 1 5 7 6 . 1 4 1 4 4 12 3 . 12 1 1 14 . 7 27 8 13 31 11 82 Fire 1883 | 4 51 34 75 14 . 10 84 25 117 82 110 8 . 1 6 28 84 85 1 7 . 22 29 49 13 37 30 41 . 5 . 35 30 97 22 126 195 78 248 Melee 24 | . 1 . 6 . . . 2 4 1 2 4 . . . . . . . . . . . . . . 4 . . . . . . . . . . . . . Ram . | . . . . . . . . . . . . . . . . . . . . . . . . . . . . . . . . . . . . . . . . Kick . | . . . . . . . . . . . . . . . . . . . . . . . . . . . . . . . . . . . . . . . . Crush 59 | . 4 4 2 4 . 4 5 . 3 5 6 . . . . 1 . 1 . . . . . 8 . . 7 . . . . . . 1 . 2 . 1 1 Escape Stasis . | . . . . . . . . . . . . . . . . . . . . . . . . . . . . . . . . . . . . . . . . Rewire 296 | . . . . . . . . . . 1 2 . . . . . . 1 . . . . . 232 . . . . . . . . . . . . 11 . 49 Trap . | . . . . . . . . . . . . . . . . . . . . . . . . . . . . . . . . . . . . . . . . Miscellaneous . | . . . . . . . . . . . . . . . . . . . . . . . . . . . . . . . . . . . . . . . . Route ------- -11/Scrapyard -10/Materials (discovered 5 exits: *Mat x3 / *Min / Sub) -10/Mines (discovered 3 exits: *Mat x2 / *Sub) -9/Materials (discovered 5 exits: *Mat x3 / *Min x2) -9/Mines (discovered 4 exits: *Mat x2 / *Exi / [*Zio]) -9/Exiles (discovered 2 exits: *Min x2) -8/Mines (discovered 2 exits: *Mat x2) -8/Materials (discovered 5 exits: *Fac x3 / *Sto / Gar) -8/Garrison (discovered 4 exits: Fac x3 / *Mat) -8/Materials (discovered 4 exits: *Fac x3 / *Sto) -8/Storage (discovered 2 exits: *Fac / Rec) -7/Factory -7/Lower Caves -7/Lower Caves (discovered 2 exits: *Fac / [*Zio]) -7/Zion -6/Proximity Caves -6/Factory (discovered 3 exits: *Low x2 / Gar) -6/Garrison (discovered 2 exits: *Fac x2) -6/Factory (discovered 6 exits: *Fac x4 / *Low x2) -6/Lower Caves -6/Lower Caves (discovered 2 exits: *Fac / *Dat) -6/Data Miner -5/Proximity Caves -5/Factory (discovered 4 exits: Upp x2 / *Ext x2) -5/Extension (discovered 2 exits: *Fac / *Cet) -5/Cetus (discovered 2 exits: *Fac / *Arc) -5/Archives (discovered 3 exits: *Fac / *Hub x2) -5/Hub_04(d) -4/Factory (discovered 3 exits: *Res / *Upp x2) -4/Upper Caves -4/Upper Caves -4/Warlord -3/Proximity Caves -3/Research (discovered 3 exits: Arm / *Tes x2) -3/Testing -2/Research (discovered 5 exits: Acc x3 / *Qua x2) -2/Quarantine (discovered 2 exits: *Acc / *Sec) -2/Section 7 -1/Access -1/Command (discovered 2 exits: [*Sur x2]) To Fleet Rendezvous History --------- Turn | Location | Event 15 | -11/Scrapyard | Discovered new exit (range 3) 58 | -11/Scrapyard | Entered Materials 300 | -10/Materials | Build established: Mutant 605 | -10/Materials | Discovered new exit (range 12) 964 | -10/Materials | Discovered new exit (range 16) 1465 | -10/Materials | Discovered new exit (range 11) 1517 | -10/Materials | Learned 4 Recycling zone layouts 1546 | -10/Materials | Identified exit to Mines 1563 | -10/Materials | Learned location of 2 exits from Mines 1569 | -10/Materials | Identified exit to Subcaves 1572 | -10/Materials | Learned Storage emergency access door positions 1596 | -10/Materials | Learned 2 Mines zone layouts 1996 | -10/Materials | Central database locked down 2209 | -10/Materials | Repaired Lgt. Treads 2251 | -10/Materials | Entered Mines 2252 | -10/Mines | Identified exit to Materials 3153 | -10/Mines | Learned Materials emergency access door positions 3335 | -10/Mines | Core integrity fell below 50% 4388 | -10/Mines | Discovered exit to Subcaves (range 11) 4408 | -10/Mines | Entered Materials 4408 | -9/Materials | Evolved 2 slots: Propulsion x1, Utility x1 4409 | -9/Materials | Identified exit to Mines 5598 | -9/Materials | Destroyed 7 combat bots 5624 | -9/Materials | Discovered new exit (range 17) 5795 | -9/Materials | Learned Storage stockpile data 5863 | -9/Materials | Learned location of Recycling (-8) 5957 | -9/Materials | Identified exit to Materials 5957 | -9/Materials | Learned location of 1 exit from Materials 7361 | -9/Materials | Learned 4 Recycling zone layouts 7422 | -9/Materials | Learned location of Storage (-8) 7505 | -9/Materials | Loaded intel: 16 trap records 7587 | -9/Materials | Repaired Adv. Beam Cannon 7639 | -9/Materials | Repaired Adv. Beam Cannon 7720 | -9/Materials | Entered Mines 7720 | -9/Mines | Accompanied by 1 ally 7778 | -9/Mines | Found a damaged Exp. Sensor Array with a note attached 7782 | -9/Mines | Found Prototype Device 7783 | -9/Mines | Identified Exp. Sensor Array 8032 | -9/Mines | Deemed a non-threat by the Exiles lab entrance 8032 | -9/Mines | Discovered new exit (range 5) 8108 | -9/Mines | A weapon hastily lodged in a ceiling crevice suddenly fell to the ground 8204 | -9/Mines | Found a hidden stash of uninstalled traps 8409 | -9/Mines | Met a Derelict shopkeep closing up shop 8787 | -9/Mines | A Derelict revealed a hidden shortcut to a safe place 8890 | -9/Mines | Entered Exiles 8890 | -9/Exiles | Accompanied by 1 ally 8891 | -9/Exiles | Identified exit to Mines 8911 | -9/Exiles | Discovered exit to Mines (range 15) 8930 | -9/Exiles | Met 8R-AWN 8956 | -9/Exiles | Met EX-HEX 9036 | -9/Exiles | Met EX-DEC 9065 | -9/Exiles | Learned location of Zion (-7) 9239 | -9/Exiles | Met EX-BIN 9437 | -9/Exiles | Entered Mines 9437 | -8/Mines | Accompanied by 1 ally 9498 | -8/Mines | Discovered exit to Materials (range 11) 9626 | -8/Mines | Discovered exit to Materials (range 8) 10427 | -8/Mines | Entered Materials 10427 | -8/Materials | Accompanied by 1 ally 10427 | -8/Materials | Evolved 2 slots: Propulsion x1, Utility x1 10428 | -8/Materials | Identified exit to Factory 10487 | -8/Materials | Repaired Imp. Treads 10737 | -8/Materials | Build established: Scavenger-Mutant 10744 | -8/Materials | Discovered new exit (range 15) 11768 | -8/Materials | Discovered exit to Factory (range 9) 12574 | -8/Materials | Learned Storage security intel 12642 | -8/Materials | Learned location of 1 exit from Storage 12678 | -8/Materials | Identified exit to Garrison 12701 | -8/Materials | Learned Factory stockpile data 12793 | -8/Materials | Learned location of 1 exit from Recycling 12823 | -8/Materials | Learned Factory garrison access intel 12873 | -8/Materials | Learned Factory terminal intel 12913 | -8/Materials | Learned location of 1 exit from Recycling 13296 | -8/Materials | Entered Garrison 13296 | -8/Garrison | Accompanied by 1 ally 13565 | -8/Garrison | Triggered checkpoint 13568 | -8/Garrison | Triggered checkpoint 13774 | -8/Garrison | Discovered exit to Factory (range 9) 13774 | -8/Garrison | Discovered exit to Factory (range 73) 13774 | -8/Garrison | Discovered exit to Factory (range 40) 13774 | -8/Garrison | Discovered new exit (range 29) 13850 | -8/Garrison | Triggered checkpoint 13960 | -8/Garrison | Entered Materials 13960 | -8/Materials | Accompanied by 1 ally 14983 | -8/Materials | Learned Factory terminal intel 15092 | -8/Materials | Learned location of 1 exit from Extension 15129 | -8/Materials | Learned Storage emergency access door positions 15177 | -8/Materials | Learned 2 Lower Caves zone layouts 15235 | -8/Materials | Learned Factory emergency access door positions 15255 | -8/Materials | Identified exit to Storage 15327 | -8/Materials | Discovered exit to Factory (range 16) 15718 | -8/Materials | Core integrity fell below 50% 15765 | -8/Materials | Lost 3 parts (1p2w) 15913 | -8/Materials | Discovered exit to Factory (range 15) 16489 | -8/Materials | Build established: Mutant 16673 | -8/Materials | Entered Storage 16674 | -8/Storage | Identified exit to Recycling 16969 | -8/Storage | Repaired Hrd. Medium Armor Plating 17640 | -8/Storage | Repaired Exp. Sensor Array 17954 | -8/Storage | Garrison activated, responded to threat 18187 | -8/Storage | Found Prototype Protection 18188 | -8/Storage | Identified Lgt. Regenerative Plating 18355 | -8/Storage | Discovered exit to Factory (range 15) 18648 | -8/Storage | Met 01-MTF 18818 | -8/Storage | Central database locked down 18822 | -8/Storage | Assisted by bots powering up and referring to "LRC-V3" 18964 | -8/Storage | Allied Derelicts emerged from ambush trap array 19102 | -8/Storage | Entered Factory 19102 | -7/Factory | Accompanied by 15 allies (01-MTF) 19102 | -7/Factory | Evolved 2 slots: Power x1, Utility x1 19103 | -7/Factory | Identified exit to Lower Caves 19105 | -7/Factory | 01-MTF left 19106 | -7/Factory | Loaded intel: 26 terminal locations 19107 | -7/Factory | Loaded intel: 4 garrison access locations 19126 | -7/Factory | Build established: Commander-Mutant 19225 | -7/Factory | Lost 3 allies 19513 | -7/Factory | Lost 3 allies 19667 | -7/Factory | P-60 Hacker assimilated allied Trooper 3f 19695 | -7/Factory | Lost 4 allies 19950 | -7/Factory | Cargo convoy interrupted 19952 | -7/Factory | P-60 Hacker assimilated allied Trooper 3e 19996 | -7/Factory | Build established: Scavenger-Mutant 20016 | -7/Factory | Destroyed 8 combat bots 20075 | -7/Factory | Found Prototype Processor 20075 | -7/Factory | Identified Exp. Targeting Computer 20313 | -7/Factory | Build established: Mutant 20753 | -7/Factory | Build established: Scavenger-Mutant 20853 | -7/Factory | Entered Lower Caves 20864 | -7/Lower Caves | Met a Warlord Commander 20865 | -7/Lower Caves | Learned location of Warlord (-4) 20866 | -7/Lower Caves | Warlord Commander delivered Encrypted Comm Array 20883 | -7/Lower Caves | Found Encrypted Comm Array 21213 | -7/Lower Caves | Encountered a Warlord checkpoint 21710 | -7/Lower Caves | Attracted the attention of an 0b10 checkpoint 21889 | -7/Lower Caves | Discovered new exit (range 12) 22267 | -7/Lower Caves | Entered another Lower Caves area 22282 | -7/Lower Caves | Discovered new exit (range 11) 22645 | -7/Lower Caves | Encountered a Warlord checkpoint 22912 | -7/Lower Caves | Learned Factory terminal intel 23133 | -7/Lower Caves | Build established: Mutant 24144 | -7/Lower Caves | Discovered new exit (range 14) 24249 | -7/Lower Caves | Entered Zion 24370 | -7/Zion | Discovered new exit (range 15) 24453 | -7/Zion | System corruption cleaned by Quarantine Array 24696 | -7/Zion | Given the Hacking Drone Bay 24711 | -7/Zion | Found Prototype Device 24831 | -7/Zion | Visited the Megawrench Repair Shop 25940 | -7/Zion | Learned 4 Factory zone layouts 26011 | -7/Zion | Found Prototype Device 26011 | -7/Zion | Identified Phasing AFG 27415 | -7/Zion | Met Imprinter 28067 | -7/Zion | Megawrench repaired 13 parts 28086 | -7/Zion | Identified Hacking Drone Bay 28121 | -7/Zion | Entered Proximity Caves 29074 | -6/Proximity Caves | Discovered new exit (range 4) 29102 | -6/Proximity Caves | Entered Factory 29102 | -6/Factory | Evolved 2 slots: Propulsion x1, Utility x1 29104 | -6/Factory | Loaded intel: 26 terminal locations 29349 | -6/Factory | Identified exit to Lower Caves 29411 | -6/Factory | Build established: Scavenger-Mutant 30243 | -6/Factory | Identified exit to Garrison 30245 | -6/Factory | Entered Garrison 30463 | -6/Garrison | Triggered checkpoint 30773 | -6/Garrison | Triggered checkpoint 30887 | -6/Garrison | Triggered checkpoint 30942 | -6/Garrison | Build established: Mutant 31013 | -6/Garrison | Discovered new exit (range 10) 31037 | -6/Garrison | Attempted to access garrison exit controls, blocked by remote lockdown 31282 | -6/Garrison | Discovered new exit (range 9) 31369 | -6/Garrison | Entered Factory 31370 | -6/Factory | Loaded intel: 26 terminal locations 31685 | -6/Factory | Mak. Hacking Suite fried by hacking feedback 31988 | -6/Factory | Spotted B-75 Beast 32014 | -6/Factory | Destroyed B-75 Beast 32543 | -6/Factory | Discovered new exit (range 7) 32625 | -6/Factory | Discovered new exit (range 9) 32828 | -6/Factory | Identified exit to Factory 32932 | -6/Factory | Entered Lower Caves 33562 | -6/Lower Caves | Learned Factory trap positions 33951 | -6/Lower Caves | Discovered new exit (range 11) 34018 | -6/Lower Caves | Found Alien Artifact 34018 | -6/Lower Caves | Identified Core Expander 34018 | -6/Lower Caves | Installed Core Expander, added new Utility slot 34089 | -6/Lower Caves | Learned Factory garrison access intel 34132 | -6/Lower Caves | Entered another Lower Caves area 34181 | -6/Lower Caves | Discovered exit to Factory (range 5) 34599 | -6/Lower Caves | Learned Armory emergency access door positions 34599 | -6/Lower Caves | Learned Extension garrison access intel 35010 | -6/Lower Caves | Encountered a Warlord checkpoint 35372 | -6/Lower Caves | Learned Factory stockpile data 35382 | -6/Lower Caves | Discovered new exit (range 4) 35674 | -6/Lower Caves | Entered Data Miner 35675 | -6/Data Miner | Discovered new exit (range 6) 35707 | -6/Data Miner | Met Data Miner 35755 | -6/Data Miner | Learned location of Section 7 (-2) 35755 | -6/Data Miner | Acquired the access code to Warlord's prototype stash 35779 | -6/Data Miner | Received God Mode back door access code from Data Miner 35849 | -6/Data Miner | Entered Proximity Caves 35852 | -5/Proximity Caves | Spotter reported a threat 35949 | -5/Proximity Caves | Destroyed 9 combat bots 36346 | -5/Proximity Caves | Learned Factory terminal intel 36542 | -5/Proximity Caves | Learned location of 1 exit from Upper Caves 36798 | -5/Proximity Caves | Acquired the password to a Derelict Tinkerer's latest research 36834 | -5/Proximity Caves | Discovered exit to Factory (range 5) 36841 | -5/Proximity Caves | Entered Factory 36841 | -5/Factory | Evolved 2 slots: Propulsion x1, Utility x1 36842 | -5/Factory | Identified exit to Upper Caves 36842 | -5/Factory | Identified exit to Extension 36843 | -5/Factory | Loaded intel: 79 trap records 36845 | -5/Factory | Loaded intel: 28 terminal locations 36846 | -5/Factory | Loaded intel: 4 garrison access locations 36929 | -5/Factory | Repaired Imp. Heavy Siege Treads 37070 | -5/Factory | Fabricated R-06 Scavenger? 37279 | -5/Factory | Lost 3 parts (2n1u) 37648 | -5/Factory | Build established: Scavenger-Mutant 37748 | -5/Factory | Entered Extension 37749 | -5/Extension | Identified exit to Factory 37850 | -5/Extension | Rescued A7 38179 | -5/Extension | Build established: Mutant 38298 | -5/Extension | Identified exit to Cetus 38670 | -5/Extension | Rescued a captive Derelict 38670 | -5/Extension | Rescued a captive Derelict 38678 | -5/Extension | Build established: Commander-Mutant 38906 | -5/Extension | Spotted B-75 Beast 38912 | -5/Extension | Allies destroyed B-75 Beast 38940 | -5/Extension | Spotted B-75 Beast 38962 | -5/Extension | Allies destroyed B-75 Beast 38985 | -5/Extension | Lost 4 allies 39138 | -5/Extension | Rescued a captive Derelict 39229 | -5/Extension | Lost 3 allies 39347 | -5/Extension | Lost 7 allies 40131 | -5/Extension | Entered Cetus 40131 | -5/Cetus | Accompanied by 6 allies (A7) 40136 | -5/Cetus | Acquired a Cetus Manufacturing Module code from A7 40154 | -5/Cetus | Spotted Cetus Guard 40154 | -5/Cetus | Spotted Cetus Guard 40156 | -5/Cetus | Spotted Cetus Guard 40156 | -5/Cetus | Spotted Cetus Guard 40158 | -5/Cetus | Allies destroyed Cetus Guard 40158 | -5/Cetus | Allies destroyed Cetus Guard 40162 | -5/Cetus | Allies destroyed Cetus Guard 40168 | -5/Cetus | Allies destroyed Cetus Guard 40257 | -5/Cetus | Started Cetus Manufacturing Module 40282 | -5/Cetus | Manufactured an Enhanced Grunt 40300 | -5/Cetus | Discovered new exit (range 15) 40307 | -5/Cetus | Manufactured an Enhanced Grunt 40331 | -5/Cetus | Spotted Cetus Guard 40332 | -5/Cetus | Manufactured an Enhanced Grunt 40332 | -5/Cetus | Spotted Cetus Guard 40334 | -5/Cetus | Allies destroyed Cetus Guard 40335 | -5/Cetus | Spotted Cetus Guard 40335 | -5/Cetus | Spotted Cetus Guard 40337 | -5/Cetus | Allies destroyed Cetus Guard 40348 | -5/Cetus | Allies destroyed Cetus Guard 40356 | -5/Cetus | Allies destroyed Cetus Guard 40357 | -5/Cetus | Manufactured an Enhanced Grunt 40359 | -5/Cetus | Discovered exit to Factory (range 16) 40369 | -5/Cetus | Met Revision 17 40382 | -5/Cetus | Manufactured an Enhanced Grunt 40495 | -5/Cetus | Escorted A7 to Cetus Mainframe 40681 | -5/Cetus | Identified exit to Archives 40687 | -5/Cetus | Entered Archives 40687 | -5/Archives | Accompanied by 9 allies (A7) 40692 | -5/Archives | Received a hacking code to weaken MAIN.C 40929 | -5/Archives | Discovered new exit (range 15) 40983 | -5/Archives | Discovered exit to Factory (range 15) 41178 | -5/Archives | Discovered new exit (range 16) 41202 | -5/Archives | Identified exit to Hub_04(d) 41208 | -5/Archives | Entered Hub_04(d) 41208 | -5/Hub_04(d) | Accompanied by 7 allies 41595 | -5/Hub_04(d) | Discovered exit to Factory (range 8) 42408 | -5/Hub_04(d) | First assault squad dispatched 42434 | -5/Hub_04(d) | Incoming assault squad redirected 42477 | -5/Hub_04(d) | Network Hub disabled 42477 | -5/Hub_04(d) | Network Hub disabled 42477 | -5/Hub_04(d) | Network Hub disabled 42495 | -5/Hub_04(d) | Disrupted transfer network 42497 | -5/Hub_04(d) | Spotted Lightning 42502 | -5/Hub_04(d) | Entered Factory 42502 | -4/Factory | Evolved 2 slots: Power x1, Utility x1 42618 | -4/Factory | Build established: Scavenger-Mutant 42697 | -4/Factory | Repaired Imp. Heavy Siege Treads 42752 | -4/Factory | Found Quantum Capacitor 42999 | -4/Factory | Discovered new exit (range 14) 43010 | -4/Factory | Identified exit to Upper Caves 43020 | -4/Factory | Discovered new exit (range 10) 43222 | -4/Factory | Fabricated Quantum Capacitor (x2) 43241 | -4/Factory | Garrison activated, responded to threat 43373 | -4/Factory | Entered Upper Caves 43374 | -4/Upper Caves | Identified exit to Upper Caves 43889 | -4/Upper Caves | Entered another Upper Caves area 44053 | -4/Upper Caves | Learned 8 Research zone layouts 44178 | -4/Upper Caves | Encountered a Warlord checkpoint 44446 | -4/Upper Caves | Discovered new exit (range 16) 44461 | -4/Upper Caves | Learned Research interactive machine intel 44478 | -4/Upper Caves | Identified exit to Warlord 44798 | -4/Upper Caves | Entered Warlord 44855 | -4/Warlord | System corruption cleaned by Quarantine Array 45014 | -4/Warlord | Received a Watcher feed algorithm from an ecstatic Tinkerer 45636 | -4/Warlord | Warlord's base attacked by MAIN.C 45781 | -4/Warlord | Met Warlord 45802 | -4/Warlord | Opened Warlord's prototype stash 45809 | -4/Warlord | Found Prototype Device 45809 | -4/Warlord | Identified System Purifier 45813 | -4/Warlord | Found Prototype Processor 45813 | -4/Warlord | Identified Exp. Target Analyzer 45827 | -4/Warlord | Found Prototype Reactor 45827 | -4/Warlord | Identified Vortex Chain Reactor 45837 | -4/Warlord | Found Prototype Hackware 45950 | -4/Warlord | Found Prototype Energy Cannon 45986 | -4/Warlord | Warlord forces counterattacked 46051 | -4/Warlord | Found Prototype Processor 46052 | -4/Warlord | Identified Exp. Core Analyzer 46149 | -4/Warlord | Opened side exit 46170 | -4/Warlord | Spotted Striker 46182 | -4/Warlord | Discovered new exit (range 9) 46192 | -4/Warlord | Identified exit to Proximity Caves 46193 | -4/Warlord | Entered Proximity Caves 46195 | -3/Proximity Caves | Spotter reported a threat 46196 | -3/Proximity Caves | Spotter reported a threat 46218 | -3/Proximity Caves | Lost 5 allies 46379 | -3/Proximity Caves | Spotter reported a threat 46987 | -3/Proximity Caves | Discovered new exit (range 14) 47007 | -3/Proximity Caves | Identified exit to Research 47009 | -3/Proximity Caves | Entered Research 47009 | -3/Research | Evolved 2 slots: Utility x2 47011 | -3/Research | Loaded intel: 40 interactive machine locations 47138 | -3/Research | Identified System Mapper 47209 | -3/Research | Revision forces began assault on 0b10 47243 | -3/Research | Identified exit to Armory 47243 | -3/Research | Identified exit to Testing 47307 | -3/Research | Met up with Revision 17++ 47442 | -3/Research | Build established: Hacker-Mutant 47538 | -3/Research | Found Prototype Device 47538 | -3/Research | Identified Exp. ECM Suite 47709 | -3/Research | Research terminal network offline 47772 | -3/Research | Entered Testing 47852 | -3/Testing | Found Prototype Hackware 47852 | -3/Testing | Identified Ghost Barrier 47990 | -3/Testing | Found Prototype Processor 47990 | -3/Testing | Identified Spectral Analyzer 48067 | -3/Testing | System corruption reached 10% 48185 | -3/Testing | Identified exit to Research 48237 | -3/Testing | Scanned by Researcher 48374 | -3/Testing | Found Prototype Energy Gun 48374 | -3/Testing | Identified Warp Gun 48599 | -3/Testing | Learned Quarantine interactive machine intel 48612 | -3/Testing | Repaired Neutron Cannon 48661 | -3/Testing | Learned location of 1 exit from Testing 48679 | -3/Testing | Found Prototype Reactor 48679 | -3/Testing | Identified Zero-point Reactor 48682 | -3/Testing | Found Zero-point Reactor 48691 | -3/Testing | Found Prototype Device 48691 | -3/Testing | Identified Exp. Phase Shifter 48696 | -3/Testing | Found Prototype Device 48696 | -3/Testing | Identified Exp. Weapon Cycler 48713 | -3/Testing | Learned location of 1 exit from Armory 48756 | -3/Testing | Learned Access terminal intel 48787 | -3/Testing | Learned 4 Research zone layouts 48808 | -3/Testing | Learned Quarantine emergency access door positions 48819 | -3/Testing | Learned 4 Access zone layouts 48841 | -3/Testing | Learned Quarantine emergency access door positions 48873 | -3/Testing | Learned 4 Access zone layouts 48913 | -3/Testing | Found Prototype Energy Cannon 48913 | -3/Testing | Identified Cld. Nova Cannon 48969 | -3/Testing | Learned location of 2 exits from Research 49039 | -3/Testing | Repaired Hvy. Proton Cannon 49102 | -3/Testing | Entered Research 49102 | -2/Research | Warlord forces began assault on 0b10 49102 | -2/Research | Evolved 2 slots: Utility x2 49103 | -2/Research | Identified exit to Quarantine 49104 | -2/Research | Identified exit to Access 49191 | -2/Research | Repaired Centrium Heavy Treads 49212 | -2/Research | Research machine network offline 49404 | -2/Research | Build established: Hacker-Skirmisher 49735 | -2/Research | Borebot progress halted 49819 | -2/Research | Borebot progress halted 49841 | -2/Research | Spotted Executioner 49846 | -2/Research | Destroyed Executioner 49850 | -2/Research | Spotted Executioner 49855 | -2/Research | Destroyed Executioner 49864 | -2/Research | Borebot progress halted 49868 | -2/Research | Found Corrupted Prototype Device 50028 | -2/Research | Met DD-05H 50064 | -2/Research | Met up with Warlord 50102 | -2/Research | Warlord invited to help at Command 50129 | -2/Research | Entered Quarantine 50131 | -2/Quarantine | Loaded intel: 22 interactive machine locations 50170 | -2/Quarantine | Identified Adv. Kinecellerator 50492 | -2/Quarantine | Lost 4 allies 51504 | -2/Quarantine | Found Corrupted Prototype Energy Gun 51504 | -2/Quarantine | Identified Enh. Gamma Rifle 51703 | -2/Quarantine | Repaired Adv. Cooling System 51722 | -2/Quarantine | Repaired Adv. Cooling System 51770 | -2/Quarantine | Repaired Broken Adv. Kinecellerator 51985 | -2/Quarantine | Spotted Fortress 51986 | -2/Quarantine | Destroyed Fortress 52005 | -2/Quarantine | Found Vortex Chain Reactor 52232 | -2/Quarantine | Found Alien Artifact 52232 | -2/Quarantine | Identified Core Reset Matrix 52232 | -2/Quarantine | Used Core Reset Matrix 52236 | -2/Quarantine | Detected hypermatrix surge 52236 | -2/Quarantine | Sensed 2 artifacts in vicinity 52256 | -2/Quarantine | Build established: Hacker-Mutant 52289 | -2/Quarantine | Found Quantum Capacitor 52487 | -2/Quarantine | Identified exit to Section 7 52553 | -2/Quarantine | Learned location of 2 exits from Research 52608 | -2/Quarantine | Learned Access fabricator intel 52652 | -2/Quarantine | Learned location of 1 exit from Research 52747 | -2/Quarantine | Learned Section 7 garrison access intel 52793 | -2/Quarantine | Learned Research emergency access door positions 52821 | -2/Quarantine | Entered Section 7 52822 | -2/Section 7 | Sensed 22 artifacts in vicinity 52822 | -2/Section 7 | Loaded intel: 1 garrison access location 52837 | -2/Section 7 | Spotted S7 Guard 52923 | -2/Section 7 | Found Prototype Launcher 52923 | -2/Section 7 | Identified Point Singularity Launcher 53079 | -2/Section 7 | Found Core Membrane 53079 | -2/Section 7 | Installed Core Membrane, gained immunity to corruption 53509 | -2/Section 7 | Spotted B-90 Cyclops 53519 | -2/Section 7 | Destroyed B-90 Cyclops 54009 | -2/Section 7 | Found Integrated Reactor 54009 | -2/Section 7 | Installed Integrated Reactor, increased core energy generation (+10) 54033 | -2/Section 7 | Spotted S7 Guard 54090 | -2/Section 7 | Destroyed S7 Guard 54122 | -2/Section 7 | Found Corrupted Prototype Protection 54239 | -2/Section 7 | Found Prototype Processor 54239 | -2/Section 7 | Identified Exp. Terrain Scan Processor 54561 | -2/Section 7 | Found Prototype Device 54561 | -2/Section 7 | Identified Exp. Actuator Array 54648 | -2/Section 7 | Lost 3 parts (1p2u) 54757 | -2/Section 7 | Spotted S7 Guard 54776 | -2/Section 7 | Destroyed S7 Guard 54777 | -2/Section 7 | Learned Research trap positions 54792 | -2/Section 7 | Found Core Physics Calibrator 54835 | -2/Section 7 | Learned location of 1 exit from Research 54956 | -2/Section 7 | Learned 8 Research zone layouts 54975 | -2/Section 7 | Learned Research emergency access door positions 55041 | -2/Section 7 | Learned Research trap positions 55150 | -2/Section 7 | Learned location of 2 exits from Research 55203 | -2/Section 7 | Entered Access 55203 | -1/Access | Evolved 2 slots: Weapon x2 55204 | -1/Access | Loaded intel: 4 fabricator locations 55253 | -1/Access | Identified Vortex Cannon 55281 | -1/Access | Lost 6 allies 55480 | -1/Access | Build established: Hacker-Skirmisher 55779 | -1/Access | Incoming investigation squad redirected 55788 | -1/Access | Discovered new exit (range 20) 55837 | -1/Access | Found Unknown Device 55837 | -1/Access | Identified Adv. Force Booster 55953 | -1/Access | First assault squad dispatched 55960 | -1/Access | Found Prototype Hackware 56055 | -1/Access | Identified exit to Command 56057 | -1/Access | Entered Command 56057 | -1/Command | Spotted B-99 Colossus 56174 | -1/Command | Disengaged cave seal 56174 | -1/Command | Derelicts emerged from the dark tunnel 56175 | -1/Command | Build established: Hacker-Gunner 56175 | -1/Command | Welcomed Warlord to Command 56288 | -1/Command | Lost 7 allies 56439 | -1/Command | Warlord commented on Warlord statues 56445 | -1/Command | Spotted Combat Programmer 56445 | -1/Command | Spotted Combat Programmer 56446 | -1/Command | Spotted M Guard 56477 | -1/Command | Identified Hvy. Regenerative Plating 56499 | -1/Command | Spotted M Guard 56507 | -1/Command | Destroyed M Guard 56515 | -1/Command | Destroyed M Guard 56515 | -1/Command | All MAIN.C guards destroyed 56663 | -1/Command | Met MAIN.C 56663 | -1/Command | 0b10 Conduit disabled 56665 | -1/Command | Warlord shut down involuntarily 56756 | -1/Command | Destroyed MAIN.C Shell 56757 | -1/Command | MAIN.C activated Command garrisons 56783 | -1/Command | Build established: Scavenger-Gunner 56792 | -1/Command | Destroyed MAIN.C 56815 | -1/Command | Lost 7 parts (3n4u) 56842 | -1/Command | Identified Exp. System Shield 56842 | -1/Command | Discovered new exit (range 41) 56842 | -1/Command | Discovered new exit (range 78) 56842 | -1/Command | Extracted map data and part IDs from MAIN.C's data core 56983 | -1/Command | Destroyed 18 combat bots 56984 | -1/Command | Lost 7 parts (2p4u1w) 57671 | -1/Command | Build established: Alien-Mutant 58240 | -1/Command | Found Corrupted Active Sensor Suite 58536 | -1/Command | Build established: Scavenger-Gunner 59551 | -1/Command | Phase Generator disabled 60559 | -1/Command | Found Gamma Bomb Array 60562 | -1/Command | Found Gamma Bomb Array 60565 | -1/Command | Found Gamma Bomb Array 60572 | -1/Command | Found Gamma Bomb Array 61767 | -1/Command | Found Zero-point Reactor 61770 | -1/Command | Found Vortex Chain Reactor 61775 | -1/Command | Found Z-bomb Delivery System 61796 | -1/Command | Found Exp. System Purifier 61803 | -1/Command | Found Adv. Particle Accelerator 61806 | -1/Command | Found Exp. Hardlight Generator 62088 | -1/Command | Found Exp. Transmission Jammer 62360 | -1/Command | Build established: Alien-Gunner 64294 | -1/Command | Found Faulty Femtoactuators 64823 | *** | Heading to fleet! Last Messages --------------- 63927_ Dropped Adv. Surge Thruster. 63941_ Acquired 20 matter. 64138_ Acquired Imp. Heavy Siege Treads. 64140_ Dropped Hvy. Siege Treads. 64173_ Acquired Imp. Antigrav System. 64175_ Dropped Imp. Antigrav System. 64189_ Acquired 30 matter. 64267_ Acquired Adv. Cloaking Device. 64294_ Acquired Faulty Femtoactuators. 64294_ Faulty integration triggers energy drain (-533). 64296_ Dropped Faulty Femtoactuators. 64426_ Acquired 11 matter. 64428_ Acquired 9 matter. 64566_ Acquired Com. HERF Cannon. 64568_ Dropped Gamma Rifle. 64600_ Acquired Hvy. Armor Plating. 64601_ Acquired 20 matter. 64625_ Dropped Hvy. Armor Plating. [Achievement: Torch] [Achievement: Home At Last?] Map ----- +----------------------------------------------------+ | =/=*= ] ## ### [* #????# # """"" # | | %= %! " #[%*=! #%[ """ #????# # ""T"" # | | # "# ####=[#%""T! +! """"%[#????# # ##### | | # #?#*%#="""" # """" #????# # [ #???# | | ## #?#!=+|"""" # """" ###### # #???# | | #### #?# # """ # + # #???# | | #??#####?#! # # = ### ##+########???# | | ?????????#%=###############"### = #??????????# | | ?????????#!!############## *%+ *%!%![#??????????? | | ?????????#]%## #= "# !!=[%!#???#####??? | | ?????????#==## # # =%=#####* #### | | ????????##[%## """" # " [=*%!!!%%! | | ????????# ![=# ""R" # #############!%=#### | | ????????# ==#" ] "" " # #???????????##+##### | | ????????# %*"%" # *#????????????#%! ## | | ????????# #" ######????????????#! ## | | ????????##################?????????????????# ## | | ??????????????????################?????????# ## | | ??????????????????#;#########%####?????????# ## | | ??????????????????## %%############ ## | | ??????????????????## %############ ## | | ??????????????????## ^ ^^^ ^ %#%#%#[; ###" ## | | ??????????????????## != ! ! %= #"*# ### | | ??????????????????## ^ ^ *^ ^ !! ^%*!%/ ! | | ??????????????????## "" ^ =^!!^% ^^=^%=== =% | | ??????????????????## ^ @" ^ ^ ^^=^[^^^%%% %% | | ??????????????????## ^ ^ !^^! ^^^^^^!!= | | ??????????????????## ^ ^^^^^^^^^^!!%% | | ??????????????????## ^^^ ^ ^% #%#!#!;%%=! % | | ??????????????????## ] ########### " | | ??????????????????## % %########### " | | ??????????????????################???????## " | | ????????????##????################???????# % % | | ????????????# ???????????????????????????## " =% | | ????????????# ####????????????????????????## !% | | ????????????# ! #??????????????###########*%**[%% | | ????????????# ################ ##%*%%*% | | ????????????# # # ##==[%[% | | ????????????# # # "" ##!=![=! | | ?##########?# # # """" #!*!*=#! | | ?# # # ### + #[ """" "[%#![## | | ### # ## ########## !!#[[ ""% "!#!!!#? | | # # # # # ## ???# =%+%*! !%[ " !#![#? | | % # # ##??# !]!*= % ####*%#? | | [ [= [=% # " # ## #### "##########??#!%#? | | %[%| *%!%!% "% #???????#%=#? | | = *! ]= = % =*#???????#[%#? | | = *!= =*=* =!!#########=%#? | | *% [%[!%[ =% =*%= %!%![ [%=%!!=%!%=!![#? | | =%= = % %%!!%%% !*%!== *=!#########!=#? | +----------------------------------------------------+ Best States ------------- Heat Dissipation 128 Coolant Potential 120 Energy Generation 93 Energy Capacity 950 Matter Stores 300 Matter Capacity 300 Sight Range 24 Robot Scan Range 20 Terrain Scan Range 20 Terrain Scan Density 1010 Jamming Range 22 Cloak Strength 4 Additional Mass Support 9 Armor Coverage 1500 Resistance: KI 30 Resistance: TH 25 Resistance: EM 25 Point Defense Rating 240 Weapon Cycling 30 Phase Shifting 20 Evasion (%) 60 Targeting Accuracy 12 Core Analysis 8 Recoil Reduction 6 Kinecelleration 50 Offensive Hacking 34 Defensive Hacking 20 Trap Extractor Capacity 4 Item Schematics ----------------- None Robot Schematics ------------------ None Fabricated ------------ R-06 Scavenger | x2 | -5/Factory | Preloaded Quantum Capacitor | x2 | -4/Factory Alien Tech Used ----------------- Core Expander Core Reset Matrix Core Membrane Integrated Reactor Core Physics Calibrator Achievements -------------- Home At Last? My Command Is Your Wish Torch void main() Challenges ------------ None Game ------ Seed CloakingSniperBroadsword Manual? 0 Play Time 11:58:20 Cumulative 188.0 hours Start 2024.10.24 @ 16:12:30 End 2024.10.26 @ 22:35:48 Sessions 7 Manual Loads 0 Difficulty Rogue Special Mode None Game No. 90 Rogue 90 Adventurer 0 Explorer 0 Win Type 2 Total 2 Types 0/0/1/1/0/0/0/0/0 Lore% 60 Gallery% 71 Achievement% 56 Wizard Run 0 Options --------- Layout 0 ASCII 0 Keyboard 0 Movement Numpad Keybinds 1 Fullscreen 2 Font 18/X11 Map View 76x50 Zoom Use 0% Tactical HUD 1 Map Filters NONE Filters NONE Steam 1 RUN: b8fc4479-f36c-4424-9e6d-c6f8010c6dfe